Workbook

Sheet test
A1: № | B1: дата заказа | C1: тип помещения | D1: услуги | E1: S | F1: цена, м2 | G1: сумма | H1: № карты | I1: Фамилия | J1: Имя | K1: Отчество | L1: адрес | M1: контакт | N1: примечание
A2: =ROW()-1 -> 1 | B2: 2016-01-01 | C2: квартира | D2: уборка | E2: 81 | F2: =IFERROR(IF(COUNTA(C2:E2),INDEX(IF(C2="дом",price_home!$B$3:$E$4,price_kvart!$B$3:$E$4),MATCH(D2,price_kvart!$A$3:$A$4,0),MATCH(E2,price_kvart!$B$2:$E$2)),""),"") -> 33 | G2: =IFERROR((IF(dop_uslug!$K2="да",price_dop!$B$4,price_dop!$C$4))+(IF(dop_uslug!$L2="да",price_dop!$B$5,price_dop!$C$5))+(test!$E2*test!$F2)+(IF(dop_uslug!$H2="да",price_dop!$B$3,price_dop!$C$3)*dop_uslug!$I2),"") -> 4973 | H2: 5 | I2: =IFERROR(INDEX(card!$B$2:$E$102,MATCH($H2, card!$B$2:$B$102),2),"") -> сидоров | J2: =IFERROR(INDEX(card!$B$2:$E$102,MATCH($H2, card!$B$2:$B$102),3),"") -> сидр | K2: =IFERROR(INDEX(card!$B$2:$E$102,MATCH($H2, card!$B$2:$B$102),4),"") -> сидорович | L2: гоголя 16/78 | M2: 8-000-000-00-00
A3: 2 | B3: 2016-01-02 | C3: дом | D3: послестрой | E3: 60 | F3: =IFERROR(IF(COUNTA(C3:E3),INDEX(IF(C3="дом",price_home!$B$3:$E$4,price_kvart!$B$3:$E$4),MATCH(D3,price_kvart!$A$3:$A$4,0),MATCH(E3,price_kvart!$B$2:$E$2)),""),"") -> 70 | G3: =IFERROR((IF(dop_uslug!$K3="да",price_dop!$B$4,price_dop!$C$4))+(IF(dop_uslug!$L3="да",price_dop!$B$5,price_dop!$C$5))+(test!$E3*test!$F3)+(IF(dop_uslug!$H3="да",price_dop!$B$3,price_dop!$C$3)*dop_uslug!$I3),"") -> 5700 | H3: 2 | I3: =IFERROR(INDEX(card!$B$2:$E$102,MATCH($H3, card!$B$2:$B$102),2),"") -> булко | J3: =IFERROR(INDEX(card!$B$2:$E$102,MATCH($H3, card!$B$2:$B$102),3),"") -> александр | K3: =IFERROR(INDEX(card!$B$2:$E$102,MATCH($H3, card!$B$2:$B$102),4),"") -> владимирович | L3: кр.проспект 73/4/6 | M3: 8-000-000-00-00
A4: 3 | B4: 2016-01-02 | C4: квартира | D4: послестрой | E4: 60 | F4: =IFERROR(IF(COUNTA(C4:E4),INDEX(IF(C4="дом",price_home!$B$3:$E$4,price_kvart!$B$3:$E$4),MATCH(D4,price_kvart!$A$3:$A$4,0),MATCH(E4,price_kvart!$B$2:$E$2)),""),"") -> 60 | G4: =IFERROR((IF(dop_uslug!$K4="да",price_dop!$B$4,price_dop!$C$4))+(IF(dop_uslug!$L4="да",price_dop!$B$5,price_dop!$C$5))+(test!$E4*test!$F4)+(IF(dop_uslug!$H4="да",price_dop!$B$3,price_dop!$C$3)*dop_uslug!$I4),"") -> 3600 | H4: 4 | I4: =IFERROR(INDEX(card!$B$2:$E$102,MATCH($H4, card!$B$2:$B$102),2),"") -> петров | J4: =IFERROR(INDEX(card!$B$2:$E$102,MATCH($H4, card!$B$2:$B$102),3),"") -> петр | K4: =IFERROR(INDEX(card!$B$2:$E$102,MATCH($H4, card!$B$2:$B$102),4),"") -> петрович | L4: гагарина 84/455 | M4: 8-000-000-00-00
A5: 4 | B5: 2016-01-02 | C5: дом | D5: уборка | E5: 95 | F5: =IFERROR(IF(COUNTA(C5:E5),INDEX(IF(C5="дом",price_home!$B$3:$E$4,price_kvart!$B$3:$E$4),MATCH(D5,price_kvart!$A$3:$A$4,0),MATCH(E5,price_kvart!$B$2:$E$2)),""),"") -> 48 | G5: =IFERROR((IF(dop_uslug!$K5="да",price_dop!$B$4,price_dop!$C$4))+(IF(dop_uslug!$L5="да",price_dop!$B$5,price_dop!$C$5))+(test!$E5*test!$F5)+(IF(dop_uslug!$H5="да",price_dop!$B$3,price_dop!$C$3)*dop_uslug!$I5),"") -> 4560 | H5: 2 | I5: =IFERROR(INDEX(card!$B$2:$E$102,MATCH($H5, card!$B$2:$B$102),2),"") -> булко | J5: =IFERROR(INDEX(card!$B$2:$E$102,MATCH($H5, card!$B$2:$B$102),3),"") -> александр | K5: =IFERROR(INDEX(card!$B$2:$E$102,MATCH($H5, card!$B$2:$B$102),4),"") -> владимирович | L5: кр.проспект 73/4/6 | M5: 8-000-000-00-00
A6: 5 | B6: 2016-01-06 | C6: квартира | D6: уборка | E6: 60 | F6: =IFERROR(IF(COUNTA(C6:E6),INDEX(IF(C6="дом",price_home!$B$3:$E$4,price_kvart!$B$3:$E$4),MATCH(D6,price_kvart!$A$3:$A$4,0),MATCH(E6,price_kvart!$B$2:$E$2)),""),"") -> 35 | G6: =IFERROR((IF(dop_uslug!$K6="да",price_dop!$B$4,price_dop!$C$4))+(IF(dop_uslug!$L6="да",price_dop!$B$5,price_dop!$C$5))+(test!$E6*test!$F6)+(IF(dop_uslug!$H6="да",price_dop!$B$3,price_dop!$C$3)*dop_uslug!$I6),"") -> 2100 | H6: 5 | I6: =IFERROR(INDEX(card!$B$2:$E$102,MATCH($H6, card!$B$2:$B$102),2),"") -> сидоров | J6: =IFERROR(INDEX(card!$B$2:$E$102,MATCH($H6, card!$B$2:$B$102),3),"") -> сидр | K6: =IFERROR(INDEX(card!$B$2:$E$102,MATCH($H6, card!$B$2:$B$102),4),"") -> сидорович | L6: гоголя 16/78 | M6: 8-000-000-00-00
A7: 6 | B7: 2016-01-07 | C7: дом | D7: послестрой | E7: 80 | F7: =IFERROR(IF(COUNTA(C7:E7),INDEX(IF(C7="дом",price_home!$B$3:$E$4,price_kvart!$B$3:$E$4),MATCH(D7,price_kvart!$A$3:$A$4,0),MATCH(E7,price_kvart!$B$2:$E$2)),""),"") -> 70 | G7: =IFERROR((IF(dop_uslug!$K7="да",price_dop!$B$4,price_dop!$C$4))+(IF(dop_uslug!$L7="да",price_dop!$B$5,price_dop!$C$5))+(test!$E7*test!$F7)+(IF(dop_uslug!$H7="да",price_dop!$B$3,price_dop!$C$3)*dop_uslug!$I7),"") -> 6800 | H7: 4 | I7: =IFERROR(INDEX(card!$B$2:$E$102,MATCH($H7, card!$B$2:$B$102),2),"") -> петров | J7: =IFERROR(INDEX(card!$B$2:$E$102,MATCH($H7, card!$B$2:$B$102),3),"") -> петр | K7: =IFERROR(INDEX(card!$B$2:$E$102,MATCH($H7, card!$B$2:$B$102),4),"") -> петрович | L7: гагарина 84/455 | M7: 8-000-000-00-00
A8: 7 | B8: 2016-01-08 | C8: квартира | D8: уборка | E8: 15 | F8: =IFERROR(IF(COUNTA(C8:E8),INDEX(IF(C8="дом",price_home!$B$3:$E$4,price_kvart!$B$3:$E$4),MATCH(D8,price_kvart!$A$3:$A$4,0),MATCH(E8,price_kvart!$B$2:$E$2)),""),"") -> 35 | G8: =IFERROR((IF(dop_uslug!$K8="да",price_dop!$B$4,price_dop!$C$4))+(IF(dop_uslug!$L8="да",price_dop!$B$5,price_dop!$C$5))+(test!$E8*test!$F8)+(IF(dop_uslug!$H8="да",price_dop!$B$3,price_dop!$C$3)*dop_uslug!$I8),"") -> 525 | H8: 7 | I8: =IFERROR(INDEX(card!$B$2:$E$102,MATCH($H8, card!$B$2:$B$102),2),"") -> ишметов | J8: =IFERROR(INDEX(card!$B$2:$E$102,MATCH($H8, card!$B$2:$B$102),3),"") -> руслан | K8: =IFERROR(INDEX(card!$B$2:$E$102,MATCH($H8, card!$B$2:$B$102),4),"") -> фаритович | L8: высоцкого 101/45 | M8: 8-000-000-00-00
A9: 8 | B9: 2016-01-10 | C9: дом | D9: уборка | E9: 120 | F9: =IFERROR(IF(COUNTA(C9:E9),INDEX(IF(C9="дом",price_home!$B$3:$E$4,price_kvart!$B$3:$E$4),MATCH(D9,price_kvart!$A$3:$A$4,0),MATCH(E9,price_kvart!$B$2:$E$2)),""),"") -> 48 | G9: =IFERROR((IF(dop_uslug!$K9="да",price_dop!$B$4,price_dop!$C$4))+(IF(dop_uslug!$L9="да",price_dop!$B$5,price_dop!$C$5))+(test!$E9*test!$F9)+(IF(dop_uslug!$H9="да",price_dop!$B$3,price_dop!$C$3)*dop_uslug!$I9),"") -> 6560 | H9: 7 | I9: =IFERROR(INDEX(card!$B$2:$E$102,MATCH($H9, card!$B$2:$B$102),2),"") -> ишметов | J9: =IFERROR(INDEX(card!$B$2:$E$102,MATCH($H9, card!$B$2:$B$102),3),"") -> руслан | K9: =IFERROR(INDEX(card!$B$2:$E$102,MATCH($H9, card!$B$2:$B$102),4),"") -> фаритович | L9: высоцкого 101/45 | M9: 8-000-000-00-00
A10: =ROW()-1 -> 9 | B10: 2016-01-11 | C10: дом | D10: уборка | E10: 50 | F10: =IFERROR(IF(COUNTA(C10:E10),INDEX(IF(C10="дом",price_home!$B$3:$E$4,price_kvart!$B$3:$E$4),MATCH(D10,price_kvart!$A$3:$A$4,0),MATCH(E10,price_kvart!$B$2:$E$2)),""),"") -> 40 | G10: =IFERROR((IF(dop_uslug!$K10="да",price_dop!$B$4,price_dop!$C$4))+(IF(dop_uslug!$L10="да",price_dop!$B$5,price_dop!$C$5))+(test!$E10*test!$F10)+(IF(dop_uslug!$H10="да",price_dop!$B$3,price_dop!$C$3)*dop_uslug!$I10),"") -> 2000 | H10: 6 | I10: =IFERROR(INDEX(card!$B$2:$E$102,MATCH($H10, card!$B$2:$B$102),2),"") -> мамонтов | J10: =IFERROR(INDEX(card!$B$2:$E$102,MATCH($H10, card!$B$2:$B$102),3),"") -> сергей | K10: =IFERROR(INDEX(card!$B$2:$E$102,MATCH($H10, card!$B$2:$B$102),4),"") -> владимирович

Sheet dop_uslug
A1: № | B1: Фамилия | C1: Имя | D1: Отчество | E1: адрес | F1: дата заказа | G1: тип помещения | H1: окно | I1: цена окно | J1: ковры | K1: стирка | L1: посуда | M1: территория | N1: территория2 | O1: территория3 | P1: S тер. | Q1: Столбец1 | R1: Столбец2 | S1: Столбец3
A2: =test!A2 -> 1 | B2: =Таблица1[[#This Row],[Фамилия]] -> сидоров | C2: =Таблица1[[#This Row],[Имя]] -> сидр | D2: =Таблица1[[#This Row],[Отчество]] -> сидорович | E2: =Таблица1[[#This Row],[адрес]] -> гоголя 16/78 | F2: =Таблица1[[#This Row],[дата заказа]] -> 2016-01-01 | G2: =Таблица1[[#This Row],[тип помещения]] -> квартира | H2: да | I2: 5 | J2: есть | K2: да | L2: да | M2: чистка снега | Q2: =IF(dop_uslug!$M2="промести",price_dop!$B$6,IF(dop_uslug!$M2="чистка снега",price_dop!$B$7,IF(dop_uslug!$M2="чистка крыш",price_dop!$B$8,IF(price_dop!$B$8,price_dop!$C$8,price_dop!$B$8)))) -> 60
A3: =test!A3 -> 2 | B3: =Таблица1[[#This Row],[Фамилия]] -> булко | C3: =Таблица1[[#This Row],[Имя]] -> александр | D3: =Таблица1[[#This Row],[Отчество]] -> владимирович | E3: =Таблица1[[#This Row],[адрес]] -> кр.проспект 73/4/6 | F3: =Таблица1[[#This Row],[дата заказа]] -> 2016-01-02 | G3: =Таблица1[[#This Row],[тип помещения]] -> дом | H3: да | I3: 5 | J3: нету | M3: чистка снега | Q3: =IF(dop_uslug!$M3="промести",price_dop!$B$6,IF(dop_uslug!$M3="чистка снега",price_dop!$B$7,IF(dop_uslug!$M3="чистка крыш",price_dop!$B$8,IF(price_dop!$B$8,price_dop!$C$8,price_dop!$B$8)))) -> 60
A4: =test!A4 -> 3 | B4: =Таблица1[[#This Row],[Фамилия]] -> петров | C4: =Таблица1[[#This Row],[Имя]] -> петр | D4: =Таблица1[[#This Row],[Отчество]] -> петрович | E4: =Таблица1[[#This Row],[адрес]] -> гагарина 84/455 | F4: =Таблица1[[#This Row],[дата заказа]] -> 2016-01-02 | G4: =Таблица1[[#This Row],[тип помещения]] -> квартира | H4: нет | M4: снег с крыши | Q4: =IF(dop_uslug!$M4="промести",price_dop!$B$6,IF(dop_uslug!$M4="чистка снега",price_dop!$B$7,IF(dop_uslug!$M4="чистка крыш",price_dop!$B$8,IF(price_dop!$B$8,price_dop!$C$8,price_dop!$B$8)))) -> 0
A5: =test!A5 -> 4 | B5: =Таблица1[[#This Row],[Фамилия]] -> булко | C5: =Таблица1[[#This Row],[Имя]] -> александр | D5: =Таблица1[[#This Row],[Отчество]] -> владимирович | E5: =Таблица1[[#This Row],[адрес]] -> кр.проспект 73/4/6 | F5: =Таблица1[[#This Row],[дата заказа]] -> 2016-01-02 | G5: =Таблица1[[#This Row],[тип помещения]] -> дом | H5: нет | Q5: =IF(dop_uslug!$M5="промести",price_dop!$B$6,IF(dop_uslug!$M5="чистка снега",price_dop!$B$7,IF(dop_uslug!$M5="чистка крыш",price_dop!$B$8,IF(price_dop!$B$8,price_dop!$C$8,price_dop!$B$8)))) -> 0
A6: =test!A6 -> 5 | B6: =Таблица1[[#This Row],[Фамилия]] -> сидоров | C6: =Таблица1[[#This Row],[Имя]] -> сидр | D6: =Таблица1[[#This Row],[Отчество]] -> сидорович | E6: =Таблица1[[#This Row],[адрес]] -> гоголя 16/78 | F6: =Таблица1[[#This Row],[дата заказа]] -> 2016-01-06 | G6: =Таблица1[[#This Row],[тип помещения]] -> квартира | H6: нет | Q6: =IF(dop_uslug!$M6="промести",price_dop!$B$6,IF(dop_uslug!$M6="чистка снега",price_dop!$B$7,IF(dop_uslug!$M6="чистка крыш",price_dop!$B$8,IF(price_dop!$B$8,price_dop!$C$8,price_dop!$B$8)))) -> 0
A7: =test!A7 -> 6 | B7: =Таблица1[[#This Row],[Фамилия]] -> петров | C7: =Таблица1[[#This Row],[Имя]] -> петр | D7: =Таблица1[[#This Row],[Отчество]] -> петрович | E7: =Таблица1[[#This Row],[адрес]] -> гагарина 84/455 | F7: =Таблица1[[#This Row],[дата заказа]] -> 2016-01-07 | G7: =Таблица1[[#This Row],[тип помещения]] -> дом | H7: да | I7: 4 | Q7: =IF(dop_uslug!$M7="промести",price_dop!$B$6,IF(dop_uslug!$M7="чистка снега",price_dop!$B$7,IF(dop_uslug!$M7="чистка крыш",price_dop!$B$8,IF(price_dop!$B$8,price_dop!$C$8,price_dop!$B$8)))) -> 0
A8: =test!A8 -> 7 | B8: =Таблица1[[#This Row],[Фамилия]] -> ишметов | C8: =Таблица1[[#This Row],[Имя]] -> руслан | D8: =Таблица1[[#This Row],[Отчество]] -> фаритович | E8: =Таблица1[[#This Row],[адрес]] -> высоцкого 101/45 | F8: =Таблица1[[#This Row],[дата заказа]] -> 2016-01-08 | G8: =Таблица1[[#This Row],[тип помещения]] -> квартира | Q8: =IF(dop_uslug!$M8="промести",price_dop!$B$6,IF(dop_uslug!$M8="чистка снега",price_dop!$B$7,IF(dop_uslug!$M8="чистка крыш",price_dop!$B$8,IF(price_dop!$B$8,price_dop!$C$8,price_dop!$B$8)))) -> 0
A9: =test!A9 -> 8 | B9: =Таблица1[[#This Row],[Фамилия]] -> ишметов | C9: =Таблица1[[#This Row],[Имя]] -> руслан | D9: =Таблица1[[#This Row],[Отчество]] -> фаритович | E9: =Таблица1[[#This Row],[адрес]] -> высоцкого 101/45 | F9: =Таблица1[[#This Row],[дата заказа]] -> 2016-01-10 | G9: =Таблица1[[#This Row],[тип помещения]] -> дом | I9: 4 | J9: нету | K9: да | L9: да | Q9: =IF(dop_uslug!$M9="промести",price_dop!$B$6,IF(dop_uslug!$M9="чистка снега",price_dop!$B$7,IF(dop_uslug!$M9="чистка крыш",price_dop!$B$8,IF(price_dop!$B$8,price_dop!$C$8,price_dop!$B$8)))) -> 0
A10: =test!A10 -> 9 | B10: =Таблица1[[#This Row],[Фамилия]] -> мамонтов | C10: =Таблица1[[#This Row],[Имя]] -> сергей | D10: =Таблица1[[#This Row],[Отчество]] -> владимирович | E10: =Таблица1[[#This Row],[адрес]] -> 0 | F10: =Таблица1[[#This Row],[дата заказа]] -> 2016-01-11 | G10: =Таблица1[[#This Row],[тип помещения]] -> дом | Q10: =IF(dop_uslug!$M10="промести",price_dop!$B$6,IF(dop_uslug!$M10="чистка снега",price_dop!$B$7,IF(dop_uslug!$M10="чистка крыш",price_dop!$B$8,IF(price_dop!$B$8,price_dop!$C$8,price_dop!$B$8)))) -> 0

Sheet price_dop
A2: доп.услага | B2: 1 | C2: нет
A3: окна | B3: 300 | C3: 0
A4: стирка | B4: 300 | C4: 0
A5: посуда | B5: 500 | C5: 0
A6: прометание территории | B6: 30 | C6: 0
A7: чистка снега | B7: 60 | C7: 0
A8: чистка крыш | B8: 150 | C8: 0

Sheet price_kvart
A2: квартира | B2: 1 | C2: 81 | D2: 151 | E2: 251
A3: уборка | B3: 35 | C3: 33 | D3: 31 | E3: 29
A4: послестрой | B4: 60 | C4: 57 | D4: 54 | E4: 51
A5: посуда | B5: 500 | C5: 500 | D5: 500 | E5: 500
A6: окна | B6: 300 | C6: 300 | D6: 300 | E6: 300

Sheet price_home
A2: дом | B2: 1 | C2: 81 | D2: 151 | E2: 251
A3: уборка | B3: 40 | C3: 48 | D3: 46 | E3: 44
A4: послестрой | B4: 70 | C4: 67 | D4: 64 | E4: 61

Sheet formula
A1: форм | B1: тип помещения | C1: услуг | D1: доп услуги | E1: ковры | F1: окно | G1: территория | H1: стирка/посуда
B3: квартира | C3: уборка | D3: стирка | E3: есть | F3: да | G3: промести | H3: нет
B4: дом | C4: послестрой | D4: посуда | E4: нету | F4: нет | G4: чистка снега | H4: да
G5: снег с крыши
L8: цена за м2 | N8: автоматическое выставление по карте
L9: =IF(COUNTA(test!$C2:$E2),INDEX(IF(test!C2="дом",price_home!$B$3:$E$4,price_kvart!$B$3:$E$4),MATCH(test!D2,price_kvart!$A$3:$A$4,0),MATCH(test!E2,price_kvart!$B$2:$E$2)),"") -> 33 | N9: ИНДЕКС(card!$B$2:$E$102;ПОИСКПОЗ(test!$H2;card!$B$2:$B$102);2)
H10: =9/1.5 -> 6 | N10: ИНДЕКС(card!$B$2:$E$102;ПОИСКПОЗ(test!$H2;card!$B$2:$B$102);3)
J11: =3000000/68 -> 44117.64706 | L11: стирка (да/нет) | N11: ИНДЕКС(card!$B$2:$E$102;ПОИСКПОЗ(test!$H2;card!$B$2:$B$102);4)
L12: =IF(dop_uslug!$K2="да",price_dop!$B$4,price_dop!$C$4) -> 300
L14: посуда (да/нет) | N14: посуда, стирка (доп усл1)
L15: =IF(dop_uslug!$L2="да",price_dop!$B$5,price_dop!$C$5) -> 500 | N15: ЕСЛИ(dop_uslug!$K2="стирка";price_dop!$B$4;ЕСЛИ(dop_uslug!$K2="посуда";price_dop!$B$5;price_dop!$C$4))
L17: площадь*цену | N17: скрыть #р/д
L18: =test!$E2*test!$F2 -> 2673 | N18: ЕСЛИОШИБКА( ;"")
L20: ОКНА
L21: =IF(dop_uslug!$H2="да",price_dop!$B$3,price_dop!$C$3)*dop_uslug!$I2 -> 1500

Sheet card
A1: п/п | B1: № карты | C1: Фамилия | D1: Имя | E1: Отчество | F1: % | G1: коэф | H1: телефон | I1: e-mail | J1: адрес
A3: 1 | B3: 1 | C3: иванов | D3: иван | E3: иванович | F3: 5 | G3: =F3/100 -> 0.05
A4: 2 | B4: 2 | C4: булко | D4: александр | E4: владимирович | F4: 10 | G4: =F4/100 -> 0.1
A5: 3 | B5: 3 | C5: сергеев | D5: сергей | E5: сергеевич | F5: 15 | G5: 0.15
A6: 4 | B6: 4 | C6: петров | D6: петр | E6: петрович | G6: 0
A7: 5 | B7: 5 | C7: сидоров | D7: сидр | E7: сидорович | G7: 0
A8: 6 | B8: 6 | C8: мамонтов | D8: сергей | E8: владимирович | G8: 0
A9: 7 | B9: 7 | C9: ишметов | D9: руслан | E9: фаритович | G9: 0
A10: 8 | B10: 8 | C10: смирнов | D10: смирн | E10: смирнович | G10: 0
A11: 9 | B11: 9 | C11: мудоков | D11: мудак | E11: мудакович | G11: 0
A12: 10 | B12: 10 | G12: 0
A13: 11 | B13: 11 | G13: 0
A14: 12 | B14: 12 | G14: 0
A15: 13 | B15: 13 | G15: 0
A16: 14 | B16: 14 | G16: 0
A17: 15 | B17: 15 | G17: 0
A18: 16 | B18: 16 | G18: 0
A19: 17 | B19: 17 | G19: 0
A20: 18 | B20: 18 | G20: 0
A21: 19 | B21: 19 | G21: 0
A22: 20 | B22: 20 | G22: 0
A23: 21 | B23: 21 | G23: 0
A24: 22 | B24: 22 | G24: 0
A25: 23 | B25: 23 | G25: 0
A26: 24 | B26: 24 | G26: 0
A27: 25 | B27: 25 | G27: 0
A28: 26 | B28: 26 | G28: 0
A29: 27 | B29: 27 | G29: 0
A30: 28 | B30: 28 | G30: 0
A31: 29 | B31: 29 | G31: 0
A32: 30 | B32: 30 | G32: 0
A33: 31 | B33: 31 | G33: 0
A34: 32 | B34: 32 | G34: 0
A35: 33 | B35: 33 | G35: 0
A36: 34 | B36: 34 | G36: 0
A37: 35 | B37: 35 | G37: 0
A38: 36 | B38: 36 | G38: 0
A39: 37 | B39: 37 | G39: 0
A40: 38 | B40: 38 | G40: 0
A41: 39 | B41: 39 | G41: 0
A42: 40 | B42: 40 | G42: 0
A43: 41 | B43: 41 | G43: 0
A44: 42 | B44: 42 | G44: 0
A45: 43 | B45: 43 | G45: 0
A46: 44 | B46: 44 | G46: 0
A47: 45 | B47: 45 | G47: 0
A48: 46 | B48: 46 | G48: 0
A49: 47 | B49: 47 | G49: 0
A50: 48 | B50: 48 | G50: 0
A51: 49 | B51: 49 | G51: 0
A52: 50 | B52: 50 | G52: 0
A53: 51 | B53: 51 | G53: 0
A54: 52 | B54: 52 | G54: 0
A55: 53 | B55: 53 | G55: 0
A56: 54 | B56: 54 | G56: 0
A57: 55 | B57: 55 | G57: 0
A58: 56 | B58: 56 | G58: 0
A59: 57 | B59: 57 | G59: 0
A60: 58 | B60: 58 | G60: 0
A61: 59 | B61: 59 | G61: 0
A62: 60 | B62: 60 | G62: 0
A63: 61 | B63: 61 | G63: 0
A64: 62 | B64: 62 | G64: 0
A65: 63 | B65: 63 | G65: 0
A66: 64 | B66: 64 | G66: 0
A67: 65 | B67: 65 | G67: 0
A68: 66 | B68: 66 | G68: =F68/100 -> 0
A69: 67 | B69: 67 | G69: 0
A70: 68 | B70: 68 | G70: 0
A71: 69 | B71: 69 | G71: 0
A72: 70 | B72: 70 | G72: 0
A73: 71 | B73: 71 | G73: 0
A74: 72 | B74: 72 | G74: 0
A75: 73 | B75: 73 | G75: 0
A76: 74 | B76: 74 | G76: 0
A77: 75 | B77: 75 | G77: 0
A78: 76 | B78: 76 | G78: 0
A79: 77 | B79: 77 | G79: 0
A80: 78 | B80: 78 | G80: 0
A81: 79 | B81: 79 | G81: 0
A82: 80 | B82: 80 | G82: 0
A83: 81 | B83: 81 | G83: 0
A84: 82 | B84: 82 | G84: 0
A85: 83 | B85: 83 | G85: 0
A86: 84 | B86: 84 | G86: 0
A87: 85 | B87: 85 | G87: 0
A88: 86 | B88: 86 | G88: 0
A89: 87 | B89: 87 | G89: 0
A90: 88 | B90: 88 | G90: 0
A91: 89 | B91: 89 | G91: 0
A92: 90 | B92: 90 | G92: 0
A93: 91 | B93: 91 | G93: 0
A94: 92 | B94: 92 | G94: 0
A95: 93 | B95: 93 | G95: 0
A96: 94 | B96: 94 | G96: 0
A97: 95 | B97: 95 | G97: 0
A98: 96 | B98: 96 | G98: 0
A99: 97 | B99: 97 | G99: 0
A100: 98 | B100: 98 | G100: 0
A101: 99 | B101: 99 | G101: 0
A102: 100 | B102: 100 | G102: 0

Sheet инф
B2: цена за м2
B3: ЕСЛИ(СЧЁТЗ(test!C2:E2);ИНДЕКС(ЕСЛИ(test!C2="дом";price_home!$B$3:$E$4;price_kvart!$B$3:$E$4);ПОИСКПОЗ(test!D2;price_kvart!$A$3:$A$4;0);ПОИСКПОЗ(test!E2;price_kvart!$B$2:$E$2));"") | D3: автоматическое выставление по карте
D4: ИНДЕКС(card!$B$2:$E$102;ПОИСКПОЗ(test!$H2;card!$B$2:$B$102);2)
B5: стирка (да/нет) | D5: ИНДЕКС(card!$B$2:$E$102;ПОИСКПОЗ(test!$H2;card!$B$2:$B$102);3)
B6: ЕСЛИ(dop_uslug!$K2="да";price_dop!$B$4;price_dop!$C$4) | D6: ИНДЕКС(card!$B$2:$E$102;ПОИСКПОЗ(test!$H2;card!$B$2:$B$102);4)
B8: посуда (да/нет) | D8: посуда, стирка (доп усл1)
B9: ЕСЛИ(dop_uslug!$L2="да";price_dop!$B$5;price_dop!$C$5) | D9: ЕСЛИ(dop_uslug!$K2="стирка";price_dop!$B$4;ЕСЛИ(dop_uslug!$K2="посуда";price_dop!$B$5;price_dop!$C$4))
B11: площадь*цену | D11: скрыть #р/д
B12: test!$e2*test!$f2 | D12: ЕСЛИОШИБКА( ;"")
B14: ОКНА
B15: ЕСЛИ(dop_uslug!H2="да";price_dop!$B$3;price_dop!$C$3)*dop_uslug!$I2

Sheet dop_uslug (2)
A1: № | B1: Фамилия | C1: Имя | D1: Отчество | E1: адрес | F1: дата заказа | G1: тип помещения | H1: окно | I1: цена окно | J1: ковры | K1: доп усл1 | L1: доп усл2 | M1: доп усл3 | N1: доп усл4 | O1: территория | P1: S тер. | Q1: доп.услуга1 | R1: доп.услуга2 | S1: итого
A2: =Таблица1[[#This Row],[№]] -> 1 | B2: =Таблица1[[#This Row],[Фамилия]] -> сидоров | C2: =Таблица1[[#This Row],[Имя]] -> сидр | D2: =Таблица1[[#This Row],[Отчество]] -> сидорович | E2: =Таблица1[[#This Row],[адрес]] -> гоголя 16/78 | F2: =Таблица1[[#This Row],[дата заказа]] -> 2016-01-01 | G2: =Таблица1[[#This Row],[тип помещения]] -> квартира | H2: да | I2: 5 | K2: посуда | L2: стирка | Q2: =IF('dop_uslug (2)'!$K2="стирка",price_dop!$B$4,IF('dop_uslug (2)'!$K2="посуда",price_dop!$B$5,price_dop!$C$4)) -> 500 | R2: =IF('dop_uslug (2)'!$L2="стирка",price_dop!$B$4,IF('dop_uslug (2)'!$L2="посуда",price_dop!$B$5,price_dop!$C$4)) -> 300 | S2: =Таблица24[[#This Row],[доп.услуга1]]+Таблица24[[#This Row],[доп.услуга2]] -> 800
A3: =Таблица1[[#This Row],[№]] -> 2 | B3: =Таблица1[[#This Row],[Фамилия]] -> булко | C3: =Таблица1[[#This Row],[Имя]] -> александр | D3: =Таблица1[[#This Row],[Отчество]] -> владимирович | E3: =Таблица1[[#This Row],[адрес]] -> кр.проспект 73/4/6 | F3: =Таблица1[[#This Row],[дата заказа]] -> 2016-01-02 | G3: =Таблица1[[#This Row],[тип помещения]] -> дом | H3: нет | I3: 5 | Q3: =IF('dop_uslug (2)'!$K3="стирка",price_dop!$B$4,IF('dop_uslug (2)'!$K3="посуда",price_dop!$B$5,price_dop!$C$4)) -> 0 | R3: =IF('dop_uslug (2)'!$L3="стирка",price_dop!$B$4,IF('dop_uslug (2)'!$L3="посуда",price_dop!$B$5,price_dop!$C$4)) -> 0 | S3: =Таблица24[[#This Row],[доп.услуга1]]+Таблица24[[#This Row],[доп.услуга2]] -> 0
A4: =Таблица1[[#This Row],[№]] -> 3 | B4: =Таблица1[[#This Row],[Фамилия]] -> петров | C4: =Таблица1[[#This Row],[Имя]] -> петр | D4: =Таблица1[[#This Row],[Отчество]] -> петрович | E4: =Таблица1[[#This Row],[адрес]] -> гагарина 84/455 | F4: =Таблица1[[#This Row],[дата заказа]] -> 2016-01-02 | G4: =Таблица1[[#This Row],[тип помещения]] -> квартира | Q4: =IF('dop_uslug (2)'!$K4="стирка",price_dop!$B$4,IF('dop_uslug (2)'!$K4="посуда",price_dop!$B$5,price_dop!$C$4)) -> 0 | R4: =IF('dop_uslug (2)'!$L4="стирка",price_dop!$B$4,IF('dop_uslug (2)'!$L4="посуда",price_dop!$B$5,price_dop!$C$4)) -> 0 | S4: =Таблица24[[#This Row],[доп.услуга1]]+Таблица24[[#This Row],[доп.услуга2]] -> 0
A5: =Таблица1[[#This Row],[№]] -> 4 | B5: =Таблица1[[#This Row],[Фамилия]] -> булко | C5: =Таблица1[[#This Row],[Имя]] -> александр | D5: =Таблица1[[#This Row],[Отчество]] -> владимирович | E5: =Таблица1[[#This Row],[адрес]] -> кр.проспект 73/4/6 | F5: =Таблица1[[#This Row],[дата заказа]] -> 2016-01-02 | G5: =Таблица1[[#This Row],[тип помещения]] -> дом | Q5: =IF('dop_uslug (2)'!$K5="стирка",price_dop!$B$4,IF('dop_uslug (2)'!$K5="посуда",price_dop!$B$5,price_dop!$C$4)) -> 0 | R5: =IF('dop_uslug (2)'!$L5="стирка",price_dop!$B$4,IF('dop_uslug (2)'!$L5="посуда",price_dop!$B$5,price_dop!$C$4)) -> 0 | S5: =Таблица24[[#This Row],[доп.услуга1]]+Таблица24[[#This Row],[доп.услуга2]] -> 0
A6: =Таблица1[[#This Row],[№]] -> 5 | B6: =Таблица1[[#This Row],[Фамилия]] -> сидоров | C6: =Таблица1[[#This Row],[Имя]] -> сидр | D6: =Таблица1[[#This Row],[Отчество]] -> сидорович | E6: =Таблица1[[#This Row],[адрес]] -> гоголя 16/78 | F6: =Таблица1[[#This Row],[дата заказа]] -> 2016-01-06 | G6: =Таблица1[[#This Row],[тип помещения]] -> квартира | Q6: =IF('dop_uslug (2)'!$K6="стирка",price_dop!$B$4,IF('dop_uslug (2)'!$K6="посуда",price_dop!$B$5,price_dop!$C$4)) -> 0 | R6: =IF('dop_uslug (2)'!$L6="стирка",price_dop!$B$4,IF('dop_uslug (2)'!$L6="посуда",price_dop!$B$5,price_dop!$C$4)) -> 0 | S6: =Таблица24[[#This Row],[доп.услуга1]]+Таблица24[[#This Row],[доп.услуга2]] -> 0
A7: =Таблица1[[#This Row],[№]] -> 6 | B7: =Таблица1[[#This Row],[Фамилия]] -> петров | C7: =Таблица1[[#This Row],[Имя]] -> петр | D7: =Таблица1[[#This Row],[Отчество]] -> петрович | E7: =Таблица1[[#This Row],[адрес]] -> гагарина 84/455 | F7: =Таблица1[[#This Row],[дата заказа]] -> 2016-01-07 | G7: =Таблица1[[#This Row],[тип помещения]] -> дом | Q7: =IF('dop_uslug (2)'!$K7="стирка",price_dop!$B$4,IF('dop_uslug (2)'!$K7="посуда",price_dop!$B$5,price_dop!$C$4)) -> 0 | R7: =IF('dop_uslug (2)'!$L7="стирка",price_dop!$B$4,IF('dop_uslug (2)'!$L7="посуда",price_dop!$B$5,price_dop!$C$4)) -> 0 | S7: =Таблица24[[#This Row],[доп.услуга1]]+Таблица24[[#This Row],[доп.услуга2]] -> 0
A8: =Таблица1[[#This Row],[№]] -> 7 | B8: =Таблица1[[#This Row],[Фамилия]] -> ишметов | C8: =Таблица1[[#This Row],[Имя]] -> руслан | D8: =Таблица1[[#This Row],[Отчество]] -> фаритович | E8: =Таблица1[[#This Row],[адрес]] -> высоцкого 101/45 | F8: =Таблица1[[#This Row],[дата заказа]] -> 2016-01-08 | G8: =Таблица1[[#This Row],[тип помещения]] -> квартира | Q8: =IF('dop_uslug (2)'!$K8="стирка",price_dop!$B$4,IF('dop_uslug (2)'!$K8="посуда",price_dop!$B$5,price_dop!$C$4)) -> 0 | R8: =IF('dop_uslug (2)'!$L8="стирка",price_dop!$B$4,IF('dop_uslug (2)'!$L8="посуда",price_dop!$B$5,price_dop!$C$4)) -> 0 | S8: =Таблица24[[#This Row],[доп.услуга1]]+Таблица24[[#This Row],[доп.услуга2]] -> 0
A9: =Таблица1[[#This Row],[№]] -> 8 | B9: =Таблица1[[#This Row],[Фамилия]] -> ишметов | C9: =Таблица1[[#This Row],[Имя]] -> руслан | D9: =Таблица1[[#This Row],[Отчество]] -> фаритович | E9: =Таблица1[[#This Row],[адрес]] -> высоцкого 101/45 | F9: =Таблица1[[#This Row],[дата заказа]] -> 2016-01-10 | G9: =Таблица1[[#This Row],[тип помещения]] -> дом | Q9: =IF('dop_uslug (2)'!$K9="стирка",price_dop!$B$4,IF('dop_uslug (2)'!$K9="посуда",price_dop!$B$5,price_dop!$C$4)) -> 0 | R9: =IF('dop_uslug (2)'!$L9="стирка",price_dop!$B$4,IF('dop_uslug (2)'!$L9="посуда",price_dop!$B$5,price_dop!$C$4)) -> 0 | S9: =Таблица24[[#This Row],[доп.услуга1]]+Таблица24[[#This Row],[доп.услуга2]] -> 0
A10: =Таблица1[[#This Row],[№]] -> 9 | B10: =Таблица1[[#This Row],[Фамилия]] -> мамонтов | C10: =Таблица1[[#This Row],[Имя]] -> сергей | D10: =Таблица1[[#This Row],[Отчество]] -> владимирович | E10: =Таблица1[[#This Row],[адрес]] -> 0 | F10: =Таблица1[[#This Row],[дата заказа]] -> 2016-01-11 | G10: =Таблица1[[#This Row],[тип помещения]] -> дом | Q10: =IF('dop_uslug (2)'!$K10="стирка",price_dop!$B$4,IF('dop_uslug (2)'!$K10="посуда",price_dop!$B$5,price_dop!$C$4)) -> 0 | R10: =IF('dop_uslug (2)'!$L10="стирка",price_dop!$B$4,IF('dop_uslug (2)'!$L10="посуда",price_dop!$B$5,price_dop!$C$4)) -> 0 | S10: =Таблица24[[#This Row],[доп.услуга1]]+Таблица24[[#This Row],[доп.услуга2]] -> 0
A11: =Таблица1[[#This Row],[№]] ->  | B11: =Таблица1[[#This Row],[Фамилия]] ->  | C11: =Таблица1[[#This Row],[Имя]] ->  | D11: =Таблица1[[#This Row],[Отчество]] ->  | E11: =Таблица1[[#This Row],[адрес]] ->  | F11: =Таблица1[[#This Row],[дата заказа]] ->  | G11: =Таблица1[[#This Row],[тип помещения]] ->  | Q11: =IF('dop_uslug (2)'!$K11="стирка",price_dop!$B$4,IF('dop_uslug (2)'!$K11="посуда",price_dop!$B$5,price_dop!$C$4)) -> 0 | R11: =IF('dop_uslug (2)'!$L11="стирка",price_dop!$B$4,IF('dop_uslug (2)'!$L11="посуда",price_dop!$B$5,price_dop!$C$4)) -> 0 | S11: =Таблица24[[#This Row],[доп.услуга1]]+Таблица24[[#This Row],[доп.услуга2]] -> 0
A12: =Таблица1[[#This Row],[№]] ->  | B12: =Таблица1[[#This Row],[Фамилия]] ->  | C12: =Таблица1[[#This Row],[Имя]] ->  | D12: =Таблица1[[#This Row],[Отчество]] ->  | E12: =Таблица1[[#This Row],[адрес]] ->  | F12: =Таблица1[[#This Row],[дата заказа]] ->  | G12: =Таблица1[[#This Row],[тип помещения]] ->  | Q12: =IF('dop_uslug (2)'!$K12="стирка",price_dop!$B$4,IF('dop_uslug (2)'!$K12="посуда",price_dop!$B$5,price_dop!$C$4)) -> 0 | R12: =IF('dop_uslug (2)'!$L12="стирка",price_dop!$B$4,IF('dop_uslug (2)'!$L12="посуда",price_dop!$B$5,price_dop!$C$4)) -> 0 | S12: =Таблица24[[#This Row],[доп.услуга1]]+Таблица24[[#This Row],[доп.услуга2]] -> 0
A13: =Таблица1[[#This Row],[№]] ->  | B13: =Таблица1[[#This Row],[Фамилия]] ->  | C13: =Таблица1[[#This Row],[Имя]] ->  | D13: =Таблица1[[#This Row],[Отчество]] ->  | E13: =Таблица1[[#This Row],[адрес]] ->  | F13: =Таблица1[[#This Row],[дата заказа]] ->  | G13: =Таблица1[[#This Row],[тип помещения]] ->  | Q13: =IF('dop_uslug (2)'!$K13="стирка",price_dop!$B$4,IF('dop_uslug (2)'!$K13="посуда",price_dop!$B$5,price_dop!$C$4)) -> 0 | R13: =IF('dop_uslug (2)'!$L13="стирка",price_dop!$B$4,IF('dop_uslug (2)'!$L13="посуда",price_dop!$B$5,price_dop!$C$4)) -> 0 | S13: =Таблица24[[#This Row],[доп.услуга1]]+Таблица24[[#This Row],[доп.услуга2]] -> 0
A14: =Таблица1[[#This Row],[№]] ->  | B14: =Таблица1[[#This Row],[Фамилия]] ->  | C14: =Таблица1[[#This Row],[Имя]] ->  | D14: =Таблица1[[#This Row],[Отчество]] ->  | E14: =Таблица1[[#This Row],[адрес]] ->  | F14: =Таблица1[[#This Row],[дата заказа]] ->  | G14: =Таблица1[[#This Row],[тип помещения]] ->  | Q14: =IF('dop_uslug (2)'!$K14="стирка",price_dop!$B$4,IF('dop_uslug (2)'!$K14="посуда",price_dop!$B$5,price_dop!$C$4)) -> 0 | R14: =IF('dop_uslug (2)'!$L14="стирка",price_dop!$B$4,IF('dop_uslug (2)'!$L14="посуда",price_dop!$B$5,price_dop!$C$4)) -> 0 | S14: =Таблица24[[#This Row],[доп.услуга1]]+Таблица24[[#This Row],[доп.услуга2]] -> 0
A15: =Таблица1[[#This Row],[№]] ->  | B15: =Таблица1[[#This Row],[Фамилия]] ->  | C15: =Таблица1[[#This Row],[Имя]] ->  | D15: =Таблица1[[#This Row],[Отчество]] ->  | E15: =Таблица1[[#This Row],[адрес]] ->  | F15: =Таблица1[[#This Row],[дата заказа]] ->  | G15: =Таблица1[[#This Row],[тип помещения]] ->  | Q15: =IF('dop_uslug (2)'!$K15="стирка",price_dop!$B$4,IF('dop_uslug (2)'!$K15="посуда",price_dop!$B$5,price_dop!$C$4)) -> 0 | R15: =IF('dop_uslug (2)'!$L15="стирка",price_dop!$B$4,IF('dop_uslug (2)'!$L15="посуда",price_dop!$B$5,price_dop!$C$4)) -> 0 | S15: =Таблица24[[#This Row],[доп.услуга1]]+Таблица24[[#This Row],[доп.услуга2]] -> 0
A16: =Таблица1[[#This Row],[№]] ->  | B16: =Таблица1[[#This Row],[Фамилия]] ->  | C16: =Таблица1[[#This Row],[Имя]] ->  | D16: =Таблица1[[#This Row],[Отчество]] ->  | E16: =Таблица1[[#This Row],[адрес]] ->  | F16: =Таблица1[[#This Row],[дата заказа]] ->  | G16: =Таблица1[[#This Row],[тип помещения]] ->  | Q16: =IF('dop_uslug (2)'!$K16="стирка",price_dop!$B$4,IF('dop_uslug (2)'!$K16="посуда",price_dop!$B$5,price_dop!$C$4)) -> 0 | R16: =IF('dop_uslug (2)'!$L16="стирка",price_dop!$B$4,IF('dop_uslug (2)'!$L16="посуда",price_dop!$B$5,price_dop!$C$4)) -> 0 | S16: =Таблица24[[#This Row],[доп.услуга1]]+Таблица24[[#This Row],[доп.услуга2]] -> 0
A17: =Таблица1[[#This Row],[№]] ->  | B17: =Таблица1[[#This Row],[Фамилия]] ->  | C17: =Таблица1[[#This Row],[Имя]] ->  | D17: =Таблица1[[#This Row],[Отчество]] ->  | E17: =Таблица1[[#This Row],[адрес]] ->  | F17: =Таблица1[[#This Row],[дата заказа]] ->  | G17: =Таблица1[[#This Row],[тип помещения]] ->  | Q17: =IF('dop_uslug (2)'!$K17="стирка",price_dop!$B$4,IF('dop_uslug (2)'!$K17="посуда",price_dop!$B$5,price_dop!$C$4)) -> 0 | R17: =IF('dop_uslug (2)'!$L17="стирка",price_dop!$B$4,IF('dop_uslug (2)'!$L17="посуда",price_dop!$B$5,price_dop!$C$4)) -> 0 | S17: =Таблица24[[#This Row],[доп.услуга1]]+Таблица24[[#This Row],[доп.услуга2]] -> 0
A18: =Таблица1[[#This Row],[№]] ->  | B18: =Таблица1[[#This Row],[Фамилия]] ->  | C18: =Таблица1[[#This Row],[Имя]] ->  | D18: =Таблица1[[#This Row],[Отчество]] ->  | E18: =Таблица1[[#This Row],[адрес]] ->  | F18: =Таблица1[[#This Row],[дата заказа]] ->  | G18: =Таблица1[[#This Row],[тип помещения]] ->  | Q18: =IF('dop_uslug (2)'!$K18="стирка",price_dop!$B$4,IF('dop_uslug (2)'!$K18="посуда",price_dop!$B$5,price_dop!$C$4)) -> 0 | R18: =IF('dop_uslug (2)'!$L18="стирка",price_dop!$B$4,IF('dop_uslug (2)'!$L18="посуда",price_dop!$B$5,price_dop!$C$4)) -> 0 | S18: =Таблица24[[#This Row],[доп.услуга1]]+Таблица24[[#This Row],[доп.услуга2]] -> 0
A19: =Таблица1[[#This Row],[№]] ->  | B19: =Таблица1[[#This Row],[Фамилия]] ->  | C19: =Таблица1[[#This Row],[Имя]] ->  | D19: =Таблица1[[#This Row],[Отчество]] ->  | E19: =Таблица1[[#This Row],[адрес]] ->  | F19: =Таблица1[[#This Row],[дата заказа]] ->  | G19: =Таблица1[[#This Row],[тип помещения]] ->  | Q19: =IF('dop_uslug (2)'!$K19="стирка",price_dop!$B$4,IF('dop_uslug (2)'!$K19="посуда",price_dop!$B$5,price_dop!$C$4)) -> 0 | R19: =IF('dop_uslug (2)'!$L19="стирка",price_dop!$B$4,IF('dop_uslug (2)'!$L19="посуда",price_dop!$B$5,price_dop!$C$4)) -> 0 | S19: =Таблица24[[#This Row],[доп.услуга1]]+Таблица24[[#This Row],[доп.услуга2]] -> 0
A20: =Таблица1[[#This Row],[№]] ->  | B20: =Таблица1[[#This Row],[Фамилия]] ->  | C20: =Таблица1[[#This Row],[Имя]] ->  | D20: =Таблица1[[#This Row],[Отчество]] ->  | E20: =Таблица1[[#This Row],[адрес]] ->  | F20: =Таблица1[[#This Row],[дата заказа]] ->  | G20: =Таблица1[[#This Row],[тип помещения]] ->  | H20: да | Q20: =IF('dop_uslug (2)'!$K20="стирка",price_dop!$B$4,IF('dop_uslug (2)'!$K20="посуда",price_dop!$B$5,price_dop!$C$4)) -> 0 | R20: =IF('dop_uslug (2)'!$L20="стирка",price_dop!$B$4,IF('dop_uslug (2)'!$L20="посуда",price_dop!$B$5,price_dop!$C$4)) -> 0 | S20: =Таблица24[[#This Row],[доп.услуга1]]+Таблица24[[#This Row],[доп.услуга2]] -> 0
A21: =Таблица1[[#This Row],[№]] ->  | B21: =Таблица1[[#This Row],[Фамилия]] ->  | C21: =Таблица1[[#This Row],[Имя]] ->  | D21: =Таблица1[[#This Row],[Отчество]] ->  | E21: =Таблица1[[#This Row],[адрес]] ->  | F21: =Таблица1[[#This Row],[дата заказа]] ->  | G21: =Таблица1[[#This Row],[тип помещения]] ->  | Q21: =IF('dop_uslug (2)'!$K21="стирка",price_dop!$B$4,IF('dop_uslug (2)'!$K21="посуда",price_dop!$B$5,price_dop!$C$4)) -> 0 | R21: =IF('dop_uslug (2)'!$L21="стирка",price_dop!$B$4,IF('dop_uslug (2)'!$L21="посуда",price_dop!$B$5,price_dop!$C$4)) -> 0 | S21: =Таблица24[[#This Row],[доп.услуга1]]+Таблица24[[#This Row],[доп.услуга2]] -> 0
A22: =Таблица1[[#This Row],[№]] ->  | B22: =Таблица1[[#This Row],[Фамилия]] ->  | C22: =Таблица1[[#This Row],[Имя]] ->  | D22: =Таблица1[[#This Row],[Отчество]] ->  | E22: =Таблица1[[#This Row],[адрес]] ->  | F22: =Таблица1[[#This Row],[дата заказа]] ->  | G22: =Таблица1[[#This Row],[тип помещения]] ->  | Q22: =IF('dop_uslug (2)'!$K22="стирка",price_dop!$B$4,IF('dop_uslug (2)'!$K22="посуда",price_dop!$B$5,price_dop!$C$4)) -> 0 | R22: =IF('dop_uslug (2)'!$L22="стирка",price_dop!$B$4,IF('dop_uslug (2)'!$L22="посуда",price_dop!$B$5,price_dop!$C$4)) -> 0 | S22: =Таблица24[[#This Row],[доп.услуга1]]+Таблица24[[#This Row],[доп.услуга2]] -> 0
A23: =Таблица1[[#This Row],[№]] ->  | B23: =Таблица1[[#This Row],[Фамилия]] ->  | C23: =Таблица1[[#This Row],[Имя]] ->  | D23: =Таблица1[[#This Row],[Отчество]] ->  | E23: =Таблица1[[#This Row],[адрес]] ->  | F23: =Таблица1[[#This Row],[дата заказа]] ->  | G23: =Таблица1[[#This Row],[тип помещения]] ->  | Q23: =IF('dop_uslug (2)'!$K23="стирка",price_dop!$B$4,IF('dop_uslug (2)'!$K23="посуда",price_dop!$B$5,price_dop!$C$4)) -> 0 | R23: =IF('dop_uslug (2)'!$L23="стирка",price_dop!$B$4,IF('dop_uslug (2)'!$L23="посуда",price_dop!$B$5,price_dop!$C$4)) -> 0 | S23: =Таблица24[[#This Row],[доп.услуга1]]+Таблица24[[#This Row],[доп.услуга2]] -> 0
A24: =Таблица1[[#This Row],[№]] ->  | B24: =Таблица1[[#This Row],[Фамилия]] ->  | C24: =Таблица1[[#This Row],[Имя]] ->  | D24: =Таблица1[[#This Row],[Отчество]] ->  | E24: =Таблица1[[#This Row],[адрес]] ->  | F24: =Таблица1[[#This Row],[дата заказа]] ->  | G24: =Таблица1[[#This Row],[тип помещения]] ->  | Q24: =IF('dop_uslug (2)'!$K24="стирка",price_dop!$B$4,IF('dop_uslug (2)'!$K24="посуда",price_dop!$B$5,price_dop!$C$4)) -> 0 | R24: =IF('dop_uslug (2)'!$L24="стирка",price_dop!$B$4,IF('dop_uslug (2)'!$L24="посуда",price_dop!$B$5,price_dop!$C$4)) -> 0 | S24: =Таблица24[[#This Row],[доп.услуга1]]+Таблица24[[#This Row],[доп.услуга2]] -> 0
A25: =Таблица1[[#This Row],[№]] ->  | B25: =Таблица1[[#This Row],[Фамилия]] ->  | C25: =Таблица1[[#This Row],[Имя]] ->  | D25: =Таблица1[[#This Row],[Отчество]] ->  | E25: =Таблица1[[#This Row],[адрес]] ->  | F25: =Таблица1[[#This Row],[дата заказа]] ->  | G25: =Таблица1[[#This Row],[тип помещения]] ->  | Q25: =IF('dop_uslug (2)'!$K25="стирка",price_dop!$B$4,IF('dop_uslug (2)'!$K25="посуда",price_dop!$B$5,price_dop!$C$4)) -> 0 | R25: =IF('dop_uslug (2)'!$L25="стирка",price_dop!$B$4,IF('dop_uslug (2)'!$L25="посуда",price_dop!$B$5,price_dop!$C$4)) -> 0 | S25: =Таблица24[[#This Row],[доп.услуга1]]+Таблица24[[#This Row],[доп.услуга2]] -> 0
A26: =Таблица1[[#This Row],[№]] ->  | B26: =Таблица1[[#This Row],[Фамилия]] ->  | C26: =Таблица1[[#This Row],[Имя]] ->  | D26: =Таблица1[[#This Row],[Отчество]] ->  | E26: =Таблица1[[#This Row],[адрес]] ->  | F26: =Таблица1[[#This Row],[дата заказа]] ->  | G26: =Таблица1[[#This Row],[тип помещения]] ->  | Q26: =IF('dop_uslug (2)'!$K26="стирка",price_dop!$B$4,IF('dop_uslug (2)'!$K26="посуда",price_dop!$B$5,price_dop!$C$4)) -> 0 | R26: =IF('dop_uslug (2)'!$L26="стирка",price_dop!$B$4,IF('dop_uslug (2)'!$L26="посуда",price_dop!$B$5,price_dop!$C$4)) -> 0 | S26: =Таблица24[[#This Row],[доп.услуга1]]+Таблица24[[#This Row],[доп.услуга2]] -> 0
A27: =Таблица1[[#This Row],[№]] ->  | B27: =Таблица1[[#This Row],[Фамилия]] ->  | C27: =Таблица1[[#This Row],[Имя]] ->  | D27: =Таблица1[[#This Row],[Отчество]] ->  | E27: =Таблица1[[#This Row],[адрес]] ->  | F27: =Таблица1[[#This Row],[дата заказа]] ->  | G27: =Таблица1[[#This Row],[тип помещения]] ->  | Q27: =IF('dop_uslug (2)'!$K27="стирка",price_dop!$B$4,IF('dop_uslug (2)'!$K27="посуда",price_dop!$B$5,price_dop!$C$4)) -> 0 | R27: =IF('dop_uslug (2)'!$L27="стирка",price_dop!$B$4,IF('dop_uslug (2)'!$L27="посуда",price_dop!$B$5,price_dop!$C$4)) -> 0 | S27: =Таблица24[[#This Row],[доп.услуга1]]+Таблица24[[#This Row],[доп.услуга2]] -> 0
A28: =Таблица1[[#This Row],[№]] ->  | B28: =Таблица1[[#This Row],[Фамилия]] ->  | C28: =Таблица1[[#This Row],[Имя]] ->  | D28: =Таблица1[[#This Row],[Отчество]] ->  | E28: =Таблица1[[#This Row],[адрес]] ->  | F28: =Таблица1[[#This Row],[дата заказа]] ->  | G28: =Таблица1[[#This Row],[тип помещения]] ->  | Q28: =IF('dop_uslug (2)'!$K28="стирка",price_dop!$B$4,IF('dop_uslug (2)'!$K28="посуда",price_dop!$B$5,price_dop!$C$4)) -> 0 | R28: =IF('dop_uslug (2)'!$L28="стирка",price_dop!$B$4,IF('dop_uslug (2)'!$L28="посуда",price_dop!$B$5,price_dop!$C$4)) -> 0 | S28: =Таблица24[[#This Row],[доп.услуга1]]+Таблица24[[#This Row],[доп.услуга2]] -> 0
A29: =Таблица1[[#This Row],[№]] ->  | B29: =Таблица1[[#This Row],[Фамилия]] ->  | C29: =Таблица1[[#This Row],[Имя]] ->  | D29: =Таблица1[[#This Row],[Отчество]] ->  | E29: =Таблица1[[#This Row],[адрес]] ->  | F29: =Таблица1[[#This Row],[дата заказа]] ->  | G29: =Таблица1[[#This Row],[тип помещения]] ->  | Q29: =IF('dop_uslug (2)'!$K29="стирка",price_dop!$B$4,IF('dop_uslug (2)'!$K29="посуда",price_dop!$B$5,price_dop!$C$4)) -> 0 | R29: =IF('dop_uslug (2)'!$L29="стирка",price_dop!$B$4,IF('dop_uslug (2)'!$L29="посуда",price_dop!$B$5,price_dop!$C$4)) -> 0 | S29: =Таблица24[[#This Row],[доп.услуга1]]+Таблица24[[#This Row],[доп.услуга2]] -> 0
A30: =Таблица1[[#This Row],[№]] ->  | B30: =Таблица1[[#This Row],[Фамилия]] ->  | C30: =Таблица1[[#This Row],[Имя]] ->  | D30: =Таблица1[[#This Row],[Отчество]] ->  | E30: =Таблица1[[#This Row],[адрес]] ->  | F30: =Таблица1[[#This Row],[дата заказа]] ->  | G30: =Таблица1[[#This Row],[тип помещения]] ->  | Q30: =IF('dop_uslug (2)'!$K30="стирка",price_dop!$B$4,IF('dop_uslug (2)'!$K30="посуда",price_dop!$B$5,price_dop!$C$4)) -> 0 | R30: =IF('dop_uslug (2)'!$L30="стирка",price_dop!$B$4,IF('dop_uslug (2)'!$L30="посуда",price_dop!$B$5,price_dop!$C$4)) -> 0 | S30: =Таблица24[[#This Row],[доп.услуга1]]+Таблица24[[#This Row],[доп.услуга2]] -> 0
A31: =Таблица1[[#This Row],[№]] ->  | B31: =Таблица1[[#This Row],[Фамилия]] ->  | C31: =Таблица1[[#This Row],[Имя]] ->  | D31: =Таблица1[[#This Row],[Отчество]] ->  | E31: =Таблица1[[#This Row],[адрес]] ->  | F31: =Таблица1[[#This Row],[дата заказа]] ->  | G31: =Таблица1[[#This Row],[тип помещения]] ->  | Q31: =IF('dop_uslug (2)'!$K31="стирка",price_dop!$B$4,IF('dop_uslug (2)'!$K31="посуда",price_dop!$B$5,price_dop!$C$4)) -> 0 | R31: =IF('dop_uslug (2)'!$L31="стирка",price_dop!$B$4,IF('dop_uslug (2)'!$L31="посуда",price_dop!$B$5,price_dop!$C$4)) -> 0 | S31: =Таблица24[[#This Row],[доп.услуга1]]+Таблица24[[#This Row],[доп.услуга2]] -> 0
A32: =Таблица1[[#This Row],[№]] ->  | B32: =Таблица1[[#This Row],[Фамилия]] ->  | C32: =Таблица1[[#This Row],[Имя]] ->  | D32: =Таблица1[[#This Row],[Отчество]] ->  | E32: =Таблица1[[#This Row],[адрес]] ->  | F32: =Таблица1[[#This Row],[дата заказа]] ->  | G32: =Таблица1[[#This Row],[тип помещения]] ->  | Q32: =IF('dop_uslug (2)'!$K32="стирка",price_dop!$B$4,IF('dop_uslug (2)'!$K32="посуда",price_dop!$B$5,price_dop!$C$4)) -> 0 | R32: =IF('dop_uslug (2)'!$L32="стирка",price_dop!$B$4,IF('dop_uslug (2)'!$L32="посуда",price_dop!$B$5,price_dop!$C$4)) -> 0 | S32: =Таблица24[[#This Row],[доп.услуга1]]+Таблица24[[#This Row],[доп.услуга2]] -> 0
A33: =Таблица1[[#This Row],[№]] ->  | B33: =Таблица1[[#This Row],[Фамилия]] ->  | C33: =Таблица1[[#This Row],[Имя]] ->  | D33: =Таблица1[[#This Row],[Отчество]] ->  | E33: =Таблица1[[#This Row],[адрес]] ->  | F33: =Таблица1[[#This Row],[дата заказа]] ->  | G33: =Таблица1[[#This Row],[тип помещения]] ->  | Q33: =IF('dop_uslug (2)'!$K33="стирка",price_dop!$B$4,IF('dop_uslug (2)'!$K33="посуда",price_dop!$B$5,price_dop!$C$4)) -> 0 | R33: =IF('dop_uslug (2)'!$L33="стирка",price_dop!$B$4,IF('dop_uslug (2)'!$L33="посуда",price_dop!$B$5,price_dop!$C$4)) -> 0 | S33: =Таблица24[[#This Row],[доп.услуга1]]+Таблица24[[#This Row],[доп.услуга2]] -> 0
A34: =Таблица1[[#This Row],[№]] ->  | B34: =Таблица1[[#This Row],[Фамилия]] ->  | C34: =Таблица1[[#This Row],[Имя]] ->  | D34: =Таблица1[[#This Row],[Отчество]] ->  | E34: =Таблица1[[#This Row],[адрес]] ->  | F34: =Таблица1[[#This Row],[дата заказа]] ->  | G34: =Таблица1[[#This Row],[тип помещения]] ->  | Q34: =IF('dop_uslug (2)'!$K34="стирка",price_dop!$B$4,IF('dop_uslug (2)'!$K34="посуда",price_dop!$B$5,price_dop!$C$4)) -> 0 | R34: =IF('dop_uslug (2)'!$L34="стирка",price_dop!$B$4,IF('dop_uslug (2)'!$L34="посуда",price_dop!$B$5,price_dop!$C$4)) -> 0 | S34: =Таблица24[[#This Row],[доп.услуга1]]+Таблица24[[#This Row],[доп.услуга2]] -> 0
A35: =Таблица1[[#This Row],[№]] ->  | B35: =Таблица1[[#This Row],[Фамилия]] ->  | C35: =Таблица1[[#This Row],[Имя]] ->  | D35: =Таблица1[[#This Row],[Отчество]] ->  | E35: =Таблица1[[#This Row],[адрес]] ->  | F35: =Таблица1[[#This Row],[дата заказа]] ->  | G35: =Таблица1[[#This Row],[тип помещения]] ->  | Q35: =IF('dop_uslug (2)'!$K35="стирка",price_dop!$B$4,IF('dop_uslug (2)'!$K35="посуда",price_dop!$B$5,price_dop!$C$4)) -> 0 | R35: =IF('dop_uslug (2)'!$L35="стирка",price_dop!$B$4,IF('dop_uslug (2)'!$L35="посуда",price_dop!$B$5,price_dop!$C$4)) -> 0 | S35: =Таблица24[[#This Row],[доп.услуга1]]+Таблица24[[#This Row],[доп.услуга2]] -> 0
A36: =Таблица1[[#This Row],[№]] ->  | B36: =Таблица1[[#This Row],[Фамилия]] ->  | C36: =Таблица1[[#This Row],[Имя]] ->  | D36: =Таблица1[[#This Row],[Отчество]] ->  | E36: =Таблица1[[#This Row],[адрес]] ->  | F36: =Таблица1[[#This Row],[дата заказа]] ->  | G36: =Таблица1[[#This Row],[тип помещения]] ->  | Q36: =IF('dop_uslug (2)'!$K36="стирка",price_dop!$B$4,IF('dop_uslug (2)'!$K36="посуда",price_dop!$B$5,price_dop!$C$4)) -> 0 | R36: =IF('dop_uslug (2)'!$L36="стирка",price_dop!$B$4,IF('dop_uslug (2)'!$L36="посуда",price_dop!$B$5,price_dop!$C$4)) -> 0 | S36: =Таблица24[[#This Row],[доп.услуга1]]+Таблица24[[#This Row],[доп.услуга2]] -> 0
A37: =Таблица1[[#This Row],[№]] ->  | B37: =Таблица1[[#This Row],[Фамилия]] ->  | C37: =Таблица1[[#This Row],[Имя]] ->  | D37: =Таблица1[[#This Row],[Отчество]] ->  | E37: =Таблица1[[#This Row],[адрес]] ->  | F37: =Таблица1[[#This Row],[дата заказа]] ->  | G37: =Таблица1[[#This Row],[тип помещения]] ->  | Q37: =IF('dop_uslug (2)'!$K37="стирка",price_dop!$B$4,IF('dop_uslug (2)'!$K37="посуда",price_dop!$B$5,price_dop!$C$4)) -> 0 | R37: =IF('dop_uslug (2)'!$L37="стирка",price_dop!$B$4,IF('dop_uslug (2)'!$L37="посуда",price_dop!$B$5,price_dop!$C$4)) -> 0 | S37: =Таблица24[[#This Row],[доп.услуга1]]+Таблица24[[#This Row],[доп.услуга2]] -> 0
A38: =Таблица1[[#This Row],[№]] ->  | B38: =Таблица1[[#This Row],[Фамилия]] ->  | C38: =Таблица1[[#This Row],[Имя]] ->  | D38: =Таблица1[[#This Row],[Отчество]] ->  | E38: =Таблица1[[#This Row],[адрес]] ->  | F38: =Таблица1[[#This Row],[дата заказа]] ->  | G38: =Таблица1[[#This Row],[тип помещения]] ->  | Q38: =IF('dop_uslug (2)'!$K38="стирка",price_dop!$B$4,IF('dop_uslug (2)'!$K38="посуда",price_dop!$B$5,price_dop!$C$4)) -> 0 | R38: =IF('dop_uslug (2)'!$L38="стирка",price_dop!$B$4,IF('dop_uslug (2)'!$L38="посуда",price_dop!$B$5,price_dop!$C$4)) -> 0 | S38: =Таблица24[[#This Row],[доп.услуга1]]+Таблица24[[#This Row],[доп.услуга2]] -> 0
A39: =Таблица1[[#This Row],[№]] ->  | B39: =Таблица1[[#This Row],[Фамилия]] ->  | C39: =Таблица1[[#This Row],[Имя]] ->  | D39: =Таблица1[[#This Row],[Отчество]] ->  | E39: =Таблица1[[#This Row],[адрес]] ->  | F39: =Таблица1[[#This Row],[дата заказа]] ->  | G39: =Таблица1[[#This Row],[тип помещения]] ->  | Q39: =IF('dop_uslug (2)'!$K39="стирка",price_dop!$B$4,IF('dop_uslug (2)'!$K39="посуда",price_dop!$B$5,price_dop!$C$4)) -> 0 | R39: =IF('dop_uslug (2)'!$L39="стирка",price_dop!$B$4,IF('dop_uslug (2)'!$L39="посуда",price_dop!$B$5,price_dop!$C$4)) -> 0 | S39: =Таблица24[[#This Row],[доп.услуга1]]+Таблица24[[#This Row],[доп.услуга2]] -> 0
A40: =Таблица1[[#This Row],[№]] ->  | B40: =Таблица1[[#This Row],[Фамилия]] ->  | C40: =Таблица1[[#This Row],[Имя]] ->  | D40: =Таблица1[[#This Row],[Отчество]] ->  | E40: =Таблица1[[#This Row],[адрес]] ->  | F40: =Таблица1[[#This Row],[дата заказа]] ->  | G40: =Таблица1[[#This Row],[тип помещения]] ->  | Q40: =IF('dop_uslug (2)'!$K40="стирка",price_dop!$B$4,IF('dop_uslug (2)'!$K40="посуда",price_dop!$B$5,price_dop!$C$4)) -> 0 | R40: =IF('dop_uslug (2)'!$L40="стирка",price_dop!$B$4,IF('dop_uslug (2)'!$L40="посуда",price_dop!$B$5,price_dop!$C$4)) -> 0 | S40: =Таблица24[[#This Row],[доп.услуга1]]+Таблица24[[#This Row],[доп.услуга2]] -> 0
A41: =Таблица1[[#This Row],[№]] ->  | B41: =Таблица1[[#This Row],[Фамилия]] ->  | C41: =Таблица1[[#This Row],[Имя]] ->  | D41: =Таблица1[[#This Row],[Отчество]] ->  | E41: =Таблица1[[#This Row],[адрес]] ->  | F41: =Таблица1[[#This Row],[дата заказа]] ->  | G41: =Таблица1[[#This Row],[тип помещения]] ->  | Q41: =IF('dop_uslug (2)'!$K41="стирка",price_dop!$B$4,IF('dop_uslug (2)'!$K41="посуда",price_dop!$B$5,price_dop!$C$4)) -> 0 | R41: =IF('dop_uslug (2)'!$L41="стирка",price_dop!$B$4,IF('dop_uslug (2)'!$L41="посуда",price_dop!$B$5,price_dop!$C$4)) -> 0 | S41: =Таблица24[[#This Row],[доп.услуга1]]+Таблица24[[#This Row],[доп.услуга2]] -> 0
A42: =Таблица1[[#This Row],[№]] ->  | B42: =Таблица1[[#This Row],[Фамилия]] ->  | C42: =Таблица1[[#This Row],[Имя]] ->  | D42: =Таблица1[[#This Row],[Отчество]] ->  | E42: =Таблица1[[#This Row],[адрес]] ->  | F42: =Таблица1[[#This Row],[дата заказа]] ->  | G42: =Таблица1[[#This Row],[тип помещения]] ->  | Q42: =IF('dop_uslug (2)'!$K42="стирка",price_dop!$B$4,IF('dop_uslug (2)'!$K42="посуда",price_dop!$B$5,price_dop!$C$4)) -> 0 | R42: =IF('dop_uslug (2)'!$L42="стирка",price_dop!$B$4,IF('dop_uslug (2)'!$L42="посуда",price_dop!$B$5,price_dop!$C$4)) -> 0 | S42: =Таблица24[[#This Row],[доп.услуга1]]+Таблица24[[#This Row],[доп.услуга2]] -> 0
A43: =Таблица1[[#This Row],[№]] ->  | B43: =Таблица1[[#This Row],[Фамилия]] ->  | C43: =Таблица1[[#This Row],[Имя]] ->  | D43: =Таблица1[[#This Row],[Отчество]] ->  | E43: =Таблица1[[#This Row],[адрес]] ->  | F43: =Таблица1[[#This Row],[дата заказа]] ->  | G43: =Таблица1[[#This Row],[тип помещения]] ->  | Q43: =IF('dop_uslug (2)'!$K43="стирка",price_dop!$B$4,IF('dop_uslug (2)'!$K43="посуда",price_dop!$B$5,price_dop!$C$4)) -> 0 | R43: =IF('dop_uslug (2)'!$L43="стирка",price_dop!$B$4,IF('dop_uslug (2)'!$L43="посуда",price_dop!$B$5,price_dop!$C$4)) -> 0 | S43: =Таблица24[[#This Row],[доп.услуга1]]+Таблица24[[#This Row],[доп.услуга2]] -> 0
A44: =Таблица1[[#This Row],[№]] ->  | B44: =Таблица1[[#This Row],[Фамилия]] ->  | C44: =Таблица1[[#This Row],[Имя]] ->  | D44: =Таблица1[[#This Row],[Отчество]] ->  | E44: =Таблица1[[#This Row],[адрес]] ->  | F44: =Таблица1[[#This Row],[дата заказа]] ->  | G44: =Таблица1[[#This Row],[тип помещения]] ->  | Q44: =IF('dop_uslug (2)'!$K44="стирка",price_dop!$B$4,IF('dop_uslug (2)'!$K44="посуда",price_dop!$B$5,price_dop!$C$4)) -> 0 | R44: =IF('dop_uslug (2)'!$L44="стирка",price_dop!$B$4,IF('dop_uslug (2)'!$L44="посуда",price_dop!$B$5,price_dop!$C$4)) -> 0 | S44: =Таблица24[[#This Row],[доп.услуга1]]+Таблица24[[#This Row],[доп.услуга2]] -> 0
A45: =Таблица1[[#This Row],[№]] ->  | B45: =Таблица1[[#This Row],[Фамилия]] ->  | C45: =Таблица1[[#This Row],[Имя]] ->  | D45: =Таблица1[[#This Row],[Отчество]] ->  | E45: =Таблица1[[#This Row],[адрес]] ->  | F45: =Таблица1[[#This Row],[дата заказа]] ->  | G45: =Таблица1[[#This Row],[тип помещения]] ->  | Q45: =IF('dop_uslug (2)'!$K45="стирка",price_dop!$B$4,IF('dop_uslug (2)'!$K45="посуда",price_dop!$B$5,price_dop!$C$4)) -> 0 | R45: =IF('dop_uslug (2)'!$L45="стирка",price_dop!$B$4,IF('dop_uslug (2)'!$L45="посуда",price_dop!$B$5,price_dop!$C$4)) -> 0 | S45: =Таблица24[[#This Row],[доп.услуга1]]+Таблица24[[#This Row],[доп.услуга2]] -> 0
A46: =Таблица1[[#This Row],[№]] ->  | B46: =Таблица1[[#This Row],[Фамилия]] ->  | C46: =Таблица1[[#This Row],[Имя]] ->  | D46: =Таблица1[[#This Row],[Отчество]] ->  | E46: =Таблица1[[#This Row],[адрес]] ->  | F46: =Таблица1[[#This Row],[дата заказа]] ->  | G46: =Таблица1[[#This Row],[тип помещения]] ->  | Q46: =IF('dop_uslug (2)'!$K46="стирка",price_dop!$B$4,IF('dop_uslug (2)'!$K46="посуда",price_dop!$B$5,price_dop!$C$4)) -> 0 | R46: =IF('dop_uslug (2)'!$L46="стирка",price_dop!$B$4,IF('dop_uslug (2)'!$L46="посуда",price_dop!$B$5,price_dop!$C$4)) -> 0 | S46: =Таблица24[[#This Row],[доп.услуга1]]+Таблица24[[#This Row],[доп.услуга2]] -> 0
A47: =Таблица1[[#This Row],[№]] ->  | B47: =Таблица1[[#This Row],[Фамилия]] ->  | C47: =Таблица1[[#This Row],[Имя]] ->  | D47: =Таблица1[[#This Row],[Отчество]] ->  | E47: =Таблица1[[#This Row],[адрес]] ->  | F47: =Таблица1[[#This Row],[дата заказа]] ->  | G47: =Таблица1[[#This Row],[тип помещения]] ->  | Q47: =IF('dop_uslug (2)'!$K47="стирка",price_dop!$B$4,IF('dop_uslug (2)'!$K47="посуда",price_dop!$B$5,price_dop!$C$4)) -> 0 | R47: =IF('dop_uslug (2)'!$L47="стирка",price_dop!$B$4,IF('dop_uslug (2)'!$L47="посуда",price_dop!$B$5,price_dop!$C$4)) -> 0 | S47: =Таблица24[[#This Row],[доп.услуга1]]+Таблица24[[#This Row],[доп.услуга2]] -> 0
A48: =Таблица1[[#This Row],[№]] ->  | B48: =Таблица1[[#This Row],[Фамилия]] ->  | C48: =Таблица1[[#This Row],[Имя]] ->  | D48: =Таблица1[[#This Row],[Отчество]] ->  | E48: =Таблица1[[#This Row],[адрес]] ->  | F48: =Таблица1[[#This Row],[дата заказа]] ->  | G48: =Таблица1[[#This Row],[тип помещения]] ->  | Q48: =IF('dop_uslug (2)'!$K48="стирка",price_dop!$B$4,IF('dop_uslug (2)'!$K48="посуда",price_dop!$B$5,price_dop!$C$4)) -> 0 | R48: =IF('dop_uslug (2)'!$L48="стирка",price_dop!$B$4,IF('dop_uslug (2)'!$L48="посуда",price_dop!$B$5,price_dop!$C$4)) -> 0 | S48: =Таблица24[[#This Row],[доп.услуга1]]+Таблица24[[#This Row],[доп.услуга2]] -> 0
A49: =Таблица1[[#This Row],[№]] ->  | B49: =Таблица1[[#This Row],[Фамилия]] ->  | C49: =Таблица1[[#This Row],[Имя]] ->  | D49: =Таблица1[[#This Row],[Отчество]] ->  | E49: =Таблица1[[#This Row],[адрес]] ->  | F49: =Таблица1[[#This Row],[дата заказа]] ->  | G49: =Таблица1[[#This Row],[тип помещения]] ->  | Q49: =IF('dop_uslug (2)'!$K49="стирка",price_dop!$B$4,IF('dop_uslug (2)'!$K49="посуда",price_dop!$B$5,price_dop!$C$4)) -> 0 | R49: =IF('dop_uslug (2)'!$L49="стирка",price_dop!$B$4,IF('dop_uslug (2)'!$L49="посуда",price_dop!$B$5,price_dop!$C$4)) -> 0 | S49: =Таблица24[[#This Row],[доп.услуга1]]+Таблица24[[#This Row],[доп.услуга2]] -> 0
A50: =Таблица1[[#This Row],[№]] ->  | B50: =Таблица1[[#This Row],[Фамилия]] ->  | C50: =Таблица1[[#This Row],[Имя]] ->  | D50: =Таблица1[[#This Row],[Отчество]] ->  | E50: =Таблица1[[#This Row],[адрес]] ->  | F50: =Таблица1[[#This Row],[дата заказа]] ->  | G50: =Таблица1[[#This Row],[тип помещения]] ->  | Q50: =IF('dop_uslug (2)'!$K50="стирка",price_dop!$B$4,IF('dop_uslug (2)'!$K50="посуда",price_dop!$B$5,price_dop!$C$4)) -> 0 | R50: =IF('dop_uslug (2)'!$L50="стирка",price_dop!$B$4,IF('dop_uslug (2)'!$L50="посуда",price_dop!$B$5,price_dop!$C$4)) -> 0 | S50: =Таблица24[[#This Row],[доп.услуга1]]+Таблица24[[#This Row],[доп.услуга2]] -> 0
A51: =Таблица1[[#This Row],[№]] ->  | B51: =Таблица1[[#This Row],[Фамилия]] ->  | C51: =Таблица1[[#This Row],[Имя]] ->  | D51: =Таблица1[[#This Row],[Отчество]] ->  | E51: =Таблица1[[#This Row],[адрес]] ->  | F51: =Таблица1[[#This Row],[дата заказа]] ->  | G51: =Таблица1[[#This Row],[тип помещения]] ->  | Q51: =IF('dop_uslug (2)'!$K51="стирка",price_dop!$B$4,IF('dop_uslug (2)'!$K51="посуда",price_dop!$B$5,price_dop!$C$4)) -> 0 | R51: =IF('dop_uslug (2)'!$L51="стирка",price_dop!$B$4,IF('dop_uslug (2)'!$L51="посуда",price_dop!$B$5,price_dop!$C$4)) -> 0 | S51: =Таблица24[[#This Row],[доп.услуга1]]+Таблица24[[#This Row],[доп.услуга2]] -> 0
A52: =Таблица1[[#This Row],[№]] ->  | B52: =Таблица1[[#This Row],[Фамилия]] ->  | C52: =Таблица1[[#This Row],[Имя]] ->  | D52: =Таблица1[[#This Row],[Отчество]] ->  | E52: =Таблица1[[#This Row],[адрес]] ->  | F52: =Таблица1[[#This Row],[дата заказа]] ->  | G52: =Таблица1[[#This Row],[тип помещения]] ->  | Q52: =IF('dop_uslug (2)'!$K52="стирка",price_dop!$B$4,IF('dop_uslug (2)'!$K52="посуда",price_dop!$B$5,price_dop!$C$4)) -> 0 | R52: =IF('dop_uslug (2)'!$L52="стирка",price_dop!$B$4,IF('dop_uslug (2)'!$L52="посуда",price_dop!$B$5,price_dop!$C$4)) -> 0 | S52: =Таблица24[[#This Row],[доп.услуга1]]+Таблица24[[#This Row],[доп.услуга2]] -> 0
A53: =Таблица1[[#This Row],[№]] ->  | B53: =Таблица1[[#This Row],[Фамилия]] ->  | C53: =Таблица1[[#This Row],[Имя]] ->  | D53: =Таблица1[[#This Row],[Отчество]] ->  | E53: =Таблица1[[#This Row],[адрес]] ->  | F53: =Таблица1[[#This Row],[дата заказа]] ->  | G53: =Таблица1[[#This Row],[тип помещения]] ->  | Q53: =IF('dop_uslug (2)'!$K53="стирка",price_dop!$B$4,IF('dop_uslug (2)'!$K53="посуда",price_dop!$B$5,price_dop!$C$4)) -> 0 | R53: =IF('dop_uslug (2)'!$L53="стирка",price_dop!$B$4,IF('dop_uslug (2)'!$L53="посуда",price_dop!$B$5,price_dop!$C$4)) -> 0 | S53: =Таблица24[[#This Row],[доп.услуга1]]+Таблица24[[#This Row],[доп.услуга2]] -> 0
A54: =Таблица1[[#This Row],[№]] ->  | B54: =Таблица1[[#This Row],[Фамилия]] ->  | C54: =Таблица1[[#This Row],[Имя]] ->  | D54: =Таблица1[[#This Row],[Отчество]] ->  | E54: =Таблица1[[#This Row],[адрес]] ->  | F54: =Таблица1[[#This Row],[дата заказа]] ->  | G54: =Таблица1[[#This Row],[тип помещения]] ->  | Q54: =IF('dop_uslug (2)'!$K54="стирка",price_dop!$B$4,IF('dop_uslug (2)'!$K54="посуда",price_dop!$B$5,price_dop!$C$4)) -> 0 | R54: =IF('dop_uslug (2)'!$L54="стирка",price_dop!$B$4,IF('dop_uslug (2)'!$L54="посуда",price_dop!$B$5,price_dop!$C$4)) -> 0 | S54: =Таблица24[[#This Row],[доп.услуга1]]+Таблица24[[#This Row],[доп.услуга2]] -> 0
A55: =Таблица1[[#This Row],[№]] ->  | B55: =Таблица1[[#This Row],[Фамилия]] ->  | C55: =Таблица1[[#This Row],[Имя]] ->  | D55: =Таблица1[[#This Row],[Отчество]] ->  | E55: =Таблица1[[#This Row],[адрес]] ->  | F55: =Таблица1[[#This Row],[дата заказа]] ->  | G55: =Таблица1[[#This Row],[тип помещения]] ->  | Q55: =IF('dop_uslug (2)'!$K55="стирка",price_dop!$B$4,IF('dop_uslug (2)'!$K55="посуда",price_dop!$B$5,price_dop!$C$4)) -> 0 | R55: =IF('dop_uslug (2)'!$L55="стирка",price_dop!$B$4,IF('dop_uslug (2)'!$L55="посуда",price_dop!$B$5,price_dop!$C$4)) -> 0 | S55: =Таблица24[[#This Row],[доп.услуга1]]+Таблица24[[#This Row],[доп.услуга2]] -> 0
A56: =Таблица1[[#This Row],[№]] ->  | B56: =Таблица1[[#This Row],[Фамилия]] ->  | C56: =Таблица1[[#This Row],[Имя]] ->  | D56: =Таблица1[[#This Row],[Отчество]] ->  | E56: =Таблица1[[#This Row],[адрес]] ->  | F56: =Таблица1[[#This Row],[дата заказа]] ->  | G56: =Таблица1[[#This Row],[тип помещения]] ->  | Q56: =IF('dop_uslug (2)'!$K56="стирка",price_dop!$B$4,IF('dop_uslug (2)'!$K56="посуда",price_dop!$B$5,price_dop!$C$4)) -> 0 | R56: =IF('dop_uslug (2)'!$L56="стирка",price_dop!$B$4,IF('dop_uslug (2)'!$L56="посуда",price_dop!$B$5,price_dop!$C$4)) -> 0 | S56: =Таблица24[[#This Row],[доп.услуга1]]+Таблица24[[#This Row],[доп.услуга2]] -> 0
A57: =Таблица1[[#This Row],[№]] ->  | B57: =Таблица1[[#This Row],[Фамилия]] ->  | C57: =Таблица1[[#This Row],[Имя]] ->  | D57: =Таблица1[[#This Row],[Отчество]] ->  | E57: =Таблица1[[#This Row],[адрес]] ->  | F57: =Таблица1[[#This Row],[дата заказа]] ->  | G57: =Таблица1[[#This Row],[тип помещения]] ->  | Q57: =IF('dop_uslug (2)'!$K57="стирка",price_dop!$B$4,IF('dop_uslug (2)'!$K57="посуда",price_dop!$B$5,price_dop!$C$4)) -> 0 | R57: =IF('dop_uslug (2)'!$L57="стирка",price_dop!$B$4,IF('dop_uslug (2)'!$L57="посуда",price_dop!$B$5,price_dop!$C$4)) -> 0 | S57: =Таблица24[[#This Row],[доп.услуга1]]+Таблица24[[#This Row],[доп.услуга2]] -> 0
A58: =Таблица1[[#This Row],[№]] ->  | B58: =Таблица1[[#This Row],[Фамилия]] ->  | C58: =Таблица1[[#This Row],[Имя]] ->  | D58: =Таблица1[[#This Row],[Отчество]] ->  | E58: =Таблица1[[#This Row],[адрес]] ->  | F58: =Таблица1[[#This Row],[дата заказа]] ->  | G58: =Таблица1[[#This Row],[тип помещения]] ->  | Q58: =IF('dop_uslug (2)'!$K58="стирка",price_dop!$B$4,IF('dop_uslug (2)'!$K58="посуда",price_dop!$B$5,price_dop!$C$4)) -> 0 | R58: =IF('dop_uslug (2)'!$L58="стирка",price_dop!$B$4,IF('dop_uslug (2)'!$L58="посуда",price_dop!$B$5,price_dop!$C$4)) -> 0 | S58: =Таблица24[[#This Row],[доп.услуга1]]+Таблица24[[#This Row],[доп.услуга2]] -> 0
A59: =Таблица1[[#This Row],[№]] ->  | B59: =Таблица1[[#This Row],[Фамилия]] ->  | C59: =Таблица1[[#This Row],[Имя]] ->  | D59: =Таблица1[[#This Row],[Отчество]] ->  | E59: =Таблица1[[#This Row],[адрес]] ->  | F59: =Таблица1[[#This Row],[дата заказа]] ->  | G59: =Таблица1[[#This Row],[тип помещения]] ->  | Q59: =IF('dop_uslug (2)'!$K59="стирка",price_dop!$B$4,IF('dop_uslug (2)'!$K59="посуда",price_dop!$B$5,price_dop!$C$4)) -> 0 | R59: =IF('dop_uslug (2)'!$L59="стирка",price_dop!$B$4,IF('dop_uslug (2)'!$L59="посуда",price_dop!$B$5,price_dop!$C$4)) -> 0 | S59: =Таблица24[[#This Row],[доп.услуга1]]+Таблица24[[#This Row],[доп.услуга2]] -> 0
A60: =Таблица1[[#This Row],[№]] ->  | B60: =Таблица1[[#This Row],[Фамилия]] ->  | C60: =Таблица1[[#This Row],[Имя]] ->  | D60: =Таблица1[[#This Row],[Отчество]] ->  | E60: =Таблица1[[#This Row],[адрес]] ->  | F60: =Таблица1[[#This Row],[дата заказа]] ->  | G60: =Таблица1[[#This Row],[тип помещения]] ->  | Q60: =IF('dop_uslug (2)'!$K60="стирка",price_dop!$B$4,IF('dop_uslug (2)'!$K60="посуда",price_dop!$B$5,price_dop!$C$4)) -> 0 | R60: =IF('dop_uslug (2)'!$L60="стирка",price_dop!$B$4,IF('dop_uslug (2)'!$L60="посуда",price_dop!$B$5,price_dop!$C$4)) -> 0 | S60: =Таблица24[[#This Row],[доп.услуга1]]+Таблица24[[#This Row],[доп.услуга2]] -> 0
A61: =Таблица1[[#This Row],[№]] ->  | B61: =Таблица1[[#This Row],[Фамилия]] ->  | C61: =Таблица1[[#This Row],[Имя]] ->  | D61: =Таблица1[[#This Row],[Отчество]] ->  | E61: =Таблица1[[#This Row],[адрес]] ->  | F61: =Таблица1[[#This Row],[дата заказа]] ->  | G61: =Таблица1[[#This Row],[тип помещения]] ->  | Q61: =IF('dop_uslug (2)'!$K61="стирка",price_dop!$B$4,IF('dop_uslug (2)'!$K61="посуда",price_dop!$B$5,price_dop!$C$4)) -> 0 | R61: =IF('dop_uslug (2)'!$L61="стирка",price_dop!$B$4,IF('dop_uslug (2)'!$L61="посуда",price_dop!$B$5,price_dop!$C$4)) -> 0 | S61: =Таблица24[[#This Row],[доп.услуга1]]+Таблица24[[#This Row],[доп.услуга2]] -> 0
A62: =Таблица1[[#This Row],[№]] ->  | B62: =Таблица1[[#This Row],[Фамилия]] ->  | C62: =Таблица1[[#This Row],[Имя]] ->  | D62: =Таблица1[[#This Row],[Отчество]] ->  | E62: =Таблица1[[#This Row],[адрес]] ->  | F62: =Таблица1[[#This Row],[дата заказа]] ->  | G62: =Таблица1[[#This Row],[тип помещения]] ->  | Q62: =IF('dop_uslug (2)'!$K62="стирка",price_dop!$B$4,IF('dop_uslug (2)'!$K62="посуда",price_dop!$B$5,price_dop!$C$4)) -> 0 | R62: =IF('dop_uslug (2)'!$L62="стирка",price_dop!$B$4,IF('dop_uslug (2)'!$L62="посуда",price_dop!$B$5,price_dop!$C$4)) -> 0 | S62: =Таблица24[[#This Row],[доп.услуга1]]+Таблица24[[#This Row],[доп.услуга2]] -> 0
A63: =Таблица1[[#This Row],[№]] ->  | B63: =Таблица1[[#This Row],[Фамилия]] ->  | C63: =Таблица1[[#This Row],[Имя]] ->  | D63: =Таблица1[[#This Row],[Отчество]] ->  | E63: =Таблица1[[#This Row],[адрес]] ->  | F63: =Таблица1[[#This Row],[дата заказа]] ->  | G63: =Таблица1[[#This Row],[тип помещения]] ->  | Q63: =IF('dop_uslug (2)'!$K63="стирка",price_dop!$B$4,IF('dop_uslug (2)'!$K63="посуда",price_dop!$B$5,price_dop!$C$4)) -> 0 | R63: =IF('dop_uslug (2)'!$L63="стирка",price_dop!$B$4,IF('dop_uslug (2)'!$L63="посуда",price_dop!$B$5,price_dop!$C$4)) -> 0 | S63: =Таблица24[[#This Row],[доп.услуга1]]+Таблица24[[#This Row],[доп.услуга2]] -> 0
A64: =Таблица1[[#This Row],[№]] ->  | B64: =Таблица1[[#This Row],[Фамилия]] ->  | C64: =Таблица1[[#This Row],[Имя]] ->  | D64: =Таблица1[[#This Row],[Отчество]] ->  | E64: =Таблица1[[#This Row],[адрес]] ->  | F64: =Таблица1[[#This Row],[дата заказа]] ->  | G64: =Таблица1[[#This Row],[тип помещения]] ->  | Q64: =IF('dop_uslug (2)'!$K64="стирка",price_dop!$B$4,IF('dop_uslug (2)'!$K64="посуда",price_dop!$B$5,price_dop!$C$4)) -> 0 | R64: =IF('dop_uslug (2)'!$L64="стирка",price_dop!$B$4,IF('dop_uslug (2)'!$L64="посуда",price_dop!$B$5,price_dop!$C$4)) -> 0 | S64: =Таблица24[[#This Row],[доп.услуга1]]+Таблица24[[#This Row],[доп.услуга2]] -> 0
A65: =Таблица1[[#This Row],[№]] ->  | B65: =Таблица1[[#This Row],[Фамилия]] ->  | C65: =Таблица1[[#This Row],[Имя]] ->  | D65: =Таблица1[[#This Row],[Отчество]] ->  | E65: =Таблица1[[#This Row],[адрес]] ->  | F65: =Таблица1[[#This Row],[дата заказа]] ->  | G65: =Таблица1[[#This Row],[тип помещения]] ->  | Q65: =IF('dop_uslug (2)'!$K65="стирка",price_dop!$B$4,IF('dop_uslug (2)'!$K65="посуда",price_dop!$B$5,price_dop!$C$4)) -> 0 | R65: =IF('dop_uslug (2)'!$L65="стирка",price_dop!$B$4,IF('dop_uslug (2)'!$L65="посуда",price_dop!$B$5,price_dop!$C$4)) -> 0 | S65: =Таблица24[[#This Row],[доп.услуга1]]+Таблица24[[#This Row],[доп.услуга2]] -> 0
A66: =Таблица1[[#This Row],[№]] ->  | B66: =Таблица1[[#This Row],[Фамилия]] ->  | C66: =Таблица1[[#This Row],[Имя]] ->  | D66: =Таблица1[[#This Row],[Отчество]] ->  | E66: =Таблица1[[#This Row],[адрес]] ->  | F66: =Таблица1[[#This Row],[дата заказа]] ->  | G66: =Таблица1[[#This Row],[тип помещения]] ->  | Q66: =IF('dop_uslug (2)'!$K66="стирка",price_dop!$B$4,IF('dop_uslug (2)'!$K66="посуда",price_dop!$B$5,price_dop!$C$4)) -> 0 | R66: =IF('dop_uslug (2)'!$L66="стирка",price_dop!$B$4,IF('dop_uslug (2)'!$L66="посуда",price_dop!$B$5,price_dop!$C$4)) -> 0 | S66: =Таблица24[[#This Row],[доп.услуга1]]+Таблица24[[#This Row],[доп.услуга2]] -> 0
A67: =Таблица1[[#This Row],[№]] ->  | B67: =Таблица1[[#This Row],[Фамилия]] ->  | C67: =Таблица1[[#This Row],[Имя]] ->  | D67: =Таблица1[[#This Row],[Отчество]] ->  | E67: =Таблица1[[#This Row],[адрес]] ->  | F67: =Таблица1[[#This Row],[дата заказа]] ->  | G67: =Таблица1[[#This Row],[тип помещения]] ->  | Q67: =IF('dop_uslug (2)'!$K67="стирка",price_dop!$B$4,IF('dop_uslug (2)'!$K67="посуда",price_dop!$B$5,price_dop!$C$4)) -> 0 | R67: =IF('dop_uslug (2)'!$L67="стирка",price_dop!$B$4,IF('dop_uslug (2)'!$L67="посуда",price_dop!$B$5,price_dop!$C$4)) -> 0 | S67: =Таблица24[[#This Row],[доп.услуга1]]+Таблица24[[#This Row],[доп.услуга2]] -> 0
A68: =Таблица1[[#This Row],[№]] ->  | B68: =Таблица1[[#This Row],[Фамилия]] ->  | C68: =Таблица1[[#This Row],[Имя]] ->  | D68: =Таблица1[[#This Row],[Отчество]] ->  | E68: =Таблица1[[#This Row],[адрес]] ->  | F68: =Таблица1[[#This Row],[дата заказа]] ->  | G68: =Таблица1[[#This Row],[тип помещения]] ->  | Q68: =IF('dop_uslug (2)'!$K68="стирка",price_dop!$B$4,IF('dop_uslug (2)'!$K68="посуда",price_dop!$B$5,price_dop!$C$4)) -> 0 | R68: =IF('dop_uslug (2)'!$L68="стирка",price_dop!$B$4,IF('dop_uslug (2)'!$L68="посуда",price_dop!$B$5,price_dop!$C$4)) -> 0 | S68: =Таблица24[[#This Row],[доп.услуга1]]+Таблица24[[#This Row],[доп.услуга2]] -> 0
A69: =Таблица1[[#This Row],[№]] ->  | B69: =Таблица1[[#This Row],[Фамилия]] ->  | C69: =Таблица1[[#This Row],[Имя]] ->  | D69: =Таблица1[[#This Row],[Отчество]] ->  | E69: =Таблица1[[#This Row],[адрес]] ->  | F69: =Таблица1[[#This Row],[дата заказа]] ->  | G69: =Таблица1[[#This Row],[тип помещения]] ->  | Q69: =IF('dop_uslug (2)'!$K69="стирка",price_dop!$B$4,IF('dop_uslug (2)'!$K69="посуда",price_dop!$B$5,price_dop!$C$4)) -> 0 | R69: =IF('dop_uslug (2)'!$L69="стирка",price_dop!$B$4,IF('dop_uslug (2)'!$L69="посуда",price_dop!$B$5,price_dop!$C$4)) -> 0 | S69: =Таблица24[[#This Row],[доп.услуга1]]+Таблица24[[#This Row],[доп.услуга2]] -> 0
A70: =Таблица1[[#This Row],[№]] ->  | B70: =Таблица1[[#This Row],[Фамилия]] ->  | C70: =Таблица1[[#This Row],[Имя]] ->  | D70: =Таблица1[[#This Row],[Отчество]] ->  | E70: =Таблица1[[#This Row],[адрес]] ->  | F70: =Таблица1[[#This Row],[дата заказа]] ->  | G70: =Таблица1[[#This Row],[тип помещения]] ->  | Q70: =IF('dop_uslug (2)'!$K70="стирка",price_dop!$B$4,IF('dop_uslug (2)'!$K70="посуда",price_dop!$B$5,price_dop!$C$4)) -> 0 | R70: =IF('dop_uslug (2)'!$L70="стирка",price_dop!$B$4,IF('dop_uslug (2)'!$L70="посуда",price_dop!$B$5,price_dop!$C$4)) -> 0 | S70: =Таблица24[[#This Row],[доп.услуга1]]+Таблица24[[#This Row],[доп.услуга2]] -> 0
A71: =Таблица1[[#This Row],[№]] ->  | B71: =Таблица1[[#This Row],[Фамилия]] ->  | C71: =Таблица1[[#This Row],[Имя]] ->  | D71: =Таблица1[[#This Row],[Отчество]] ->  | E71: =Таблица1[[#This Row],[адрес]] ->  | F71: =Таблица1[[#This Row],[дата заказа]] ->  | G71: =Таблица1[[#This Row],[тип помещения]] ->  | Q71: =IF('dop_uslug (2)'!$K71="стирка",price_dop!$B$4,IF('dop_uslug (2)'!$K71="посуда",price_dop!$B$5,price_dop!$C$4)) -> 0 | R71: =IF('dop_uslug (2)'!$L71="стирка",price_dop!$B$4,IF('dop_uslug (2)'!$L71="посуда",price_dop!$B$5,price_dop!$C$4)) -> 0 | S71: =Таблица24[[#This Row],[доп.услуга1]]+Таблица24[[#This Row],[доп.услуга2]] -> 0
A72: =Таблица1[[#This Row],[№]] ->  | B72: =Таблица1[[#This Row],[Фамилия]] ->  | C72: =Таблица1[[#This Row],[Имя]] ->  | D72: =Таблица1[[#This Row],[Отчество]] ->  | E72: =Таблица1[[#This Row],[адрес]] ->  | F72: =Таблица1[[#This Row],[дата заказа]] ->  | G72: =Таблица1[[#This Row],[тип помещения]] ->  | Q72: =IF('dop_uslug (2)'!$K72="стирка",price_dop!$B$4,IF('dop_uslug (2)'!$K72="посуда",price_dop!$B$5,price_dop!$C$4)) -> 0 | R72: =IF('dop_uslug (2)'!$L72="стирка",price_dop!$B$4,IF('dop_uslug (2)'!$L72="посуда",price_dop!$B$5,price_dop!$C$4)) -> 0 | S72: =Таблица24[[#This Row],[доп.услуга1]]+Таблица24[[#This Row],[доп.услуга2]] -> 0
A73: =Таблица1[[#This Row],[№]] ->  | B73: =Таблица1[[#This Row],[Фамилия]] ->  | C73: =Таблица1[[#This Row],[Имя]] ->  | D73: =Таблица1[[#This Row],[Отчество]] ->  | E73: =Таблица1[[#This Row],[адрес]] ->  | F73: =Таблица1[[#This Row],[дата заказа]] ->  | G73: =Таблица1[[#This Row],[тип помещения]] ->  | Q73: =IF('dop_uslug (2)'!$K73="стирка",price_dop!$B$4,IF('dop_uslug (2)'!$K73="посуда",price_dop!$B$5,price_dop!$C$4)) -> 0 | R73: =IF('dop_uslug (2)'!$L73="стирка",price_dop!$B$4,IF('dop_uslug (2)'!$L73="посуда",price_dop!$B$5,price_dop!$C$4)) -> 0 | S73: =Таблица24[[#This Row],[доп.услуга1]]+Таблица24[[#This Row],[доп.услуга2]] -> 0
A74: =Таблица1[[#This Row],[№]] ->  | B74: =Таблица1[[#This Row],[Фамилия]] ->  | C74: =Таблица1[[#This Row],[Имя]] ->  | D74: =Таблица1[[#This Row],[Отчество]] ->  | E74: =Таблица1[[#This Row],[адрес]] ->  | F74: =Таблица1[[#This Row],[дата заказа]] ->  | G74: =Таблица1[[#This Row],[тип помещения]] ->  | Q74: =IF('dop_uslug (2)'!$K74="стирка",price_dop!$B$4,IF('dop_uslug (2)'!$K74="посуда",price_dop!$B$5,price_dop!$C$4)) -> 0 | R74: =IF('dop_uslug (2)'!$L74="стирка",price_dop!$B$4,IF('dop_uslug (2)'!$L74="посуда",price_dop!$B$5,price_dop!$C$4)) -> 0 | S74: =Таблица24[[#This Row],[доп.услуга1]]+Таблица24[[#This Row],[доп.услуга2]] -> 0
A75: =Таблица1[[#This Row],[№]] ->  | B75: =Таблица1[[#This Row],[Фамилия]] ->  | C75: =Таблица1[[#This Row],[Имя]] ->  | D75: =Таблица1[[#This Row],[Отчество]] ->  | E75: =Таблица1[[#This Row],[адрес]] ->  | F75: =Таблица1[[#This Row],[дата заказа]] ->  | G75: =Таблица1[[#This Row],[тип помещения]] ->  | Q75: =IF('dop_uslug (2)'!$K75="стирка",price_dop!$B$4,IF('dop_uslug (2)'!$K75="посуда",price_dop!$B$5,price_dop!$C$4)) -> 0 | R75: =IF('dop_uslug (2)'!$L75="стирка",price_dop!$B$4,IF('dop_uslug (2)'!$L75="посуда",price_dop!$B$5,price_dop!$C$4)) -> 0 | S75: =Таблица24[[#This Row],[доп.услуга1]]+Таблица24[[#This Row],[доп.услуга2]] -> 0
A76: =Таблица1[[#This Row],[№]] ->  | B76: =Таблица1[[#This Row],[Фамилия]] ->  | C76: =Таблица1[[#This Row],[Имя]] ->  | D76: =Таблица1[[#This Row],[Отчество]] ->  | E76: =Таблица1[[#This Row],[адрес]] ->  | F76: =Таблица1[[#This Row],[дата заказа]] ->  | G76: =Таблица1[[#This Row],[тип помещения]] ->  | Q76: =IF('dop_uslug (2)'!$K76="стирка",price_dop!$B$4,IF('dop_uslug (2)'!$K76="посуда",price_dop!$B$5,price_dop!$C$4)) -> 0 | R76: =IF('dop_uslug (2)'!$L76="стирка",price_dop!$B$4,IF('dop_uslug (2)'!$L76="посуда",price_dop!$B$5,price_dop!$C$4)) -> 0 | S76: =Таблица24[[#This Row],[доп.услуга1]]+Таблица24[[#This Row],[доп.услуга2]] -> 0
A77: =Таблица1[[#This Row],[№]] ->  | B77: =Таблица1[[#This Row],[Фамилия]] ->  | C77: =Таблица1[[#This Row],[Имя]] ->  | D77: =Таблица1[[#This Row],[Отчество]] ->  | E77: =Таблица1[[#This Row],[адрес]] ->  | F77: =Таблица1[[#This Row],[дата заказа]] ->  | G77: =Таблица1[[#This Row],[тип помещения]] ->  | Q77: =IF('dop_uslug (2)'!$K77="стирка",price_dop!$B$4,IF('dop_uslug (2)'!$K77="посуда",price_dop!$B$5,price_dop!$C$4)) -> 0 | R77: =IF('dop_uslug (2)'!$L77="стирка",price_dop!$B$4,IF('dop_uslug (2)'!$L77="посуда",price_dop!$B$5,price_dop!$C$4)) -> 0 | S77: =Таблица24[[#This Row],[доп.услуга1]]+Таблица24[[#This Row],[доп.услуга2]] -> 0
A78: =Таблица1[[#This Row],[№]] ->  | B78: =Таблица1[[#This Row],[Фамилия]] ->  | C78: =Таблица1[[#This Row],[Имя]] ->  | D78: =Таблица1[[#This Row],[Отчество]] ->  | E78: =Таблица1[[#This Row],[адрес]] ->  | F78: =Таблица1[[#This Row],[дата заказа]] ->  | G78: =Таблица1[[#This Row],[тип помещения]] ->  | Q78: =IF('dop_uslug (2)'!$K78="стирка",price_dop!$B$4,IF('dop_uslug (2)'!$K78="посуда",price_dop!$B$5,price_dop!$C$4)) -> 0 | R78: =IF('dop_uslug (2)'!$L78="стирка",price_dop!$B$4,IF('dop_uslug (2)'!$L78="посуда",price_dop!$B$5,price_dop!$C$4)) -> 0 | S78: =Таблица24[[#This Row],[доп.услуга1]]+Таблица24[[#This Row],[доп.услуга2]] -> 0
A79: =Таблица1[[#This Row],[№]] ->  | B79: =Таблица1[[#This Row],[Фамилия]] ->  | C79: =Таблица1[[#This Row],[Имя]] ->  | D79: =Таблица1[[#This Row],[Отчество]] ->  | E79: =Таблица1[[#This Row],[адрес]] ->  | F79: =Таблица1[[#This Row],[дата заказа]] ->  | G79: =Таблица1[[#This Row],[тип помещения]] ->  | Q79: =IF('dop_uslug (2)'!$K79="стирка",price_dop!$B$4,IF('dop_uslug (2)'!$K79="посуда",price_dop!$B$5,price_dop!$C$4)) -> 0 | R79: =IF('dop_uslug (2)'!$L79="стирка",price_dop!$B$4,IF('dop_uslug (2)'!$L79="посуда",price_dop!$B$5,price_dop!$C$4)) -> 0 | S79: =Таблица24[[#This Row],[доп.услуга1]]+Таблица24[[#This Row],[доп.услуга2]] -> 0
A80: =Таблица1[[#This Row],[№]] ->  | B80: =Таблица1[[#This Row],[Фамилия]] ->  | C80: =Таблица1[[#This Row],[Имя]] ->  | D80: =Таблица1[[#This Row],[Отчество]] ->  | E80: =Таблица1[[#This Row],[адрес]] ->  | F80: =Таблица1[[#This Row],[дата заказа]] ->  | G80: =Таблица1[[#This Row],[тип помещения]] ->  | Q80: =IF('dop_uslug (2)'!$K80="стирка",price_dop!$B$4,IF('dop_uslug (2)'!$K80="посуда",price_dop!$B$5,price_dop!$C$4)) -> 0 | R80: =IF('dop_uslug (2)'!$L80="стирка",price_dop!$B$4,IF('dop_uslug (2)'!$L80="посуда",price_dop!$B$5,price_dop!$C$4)) -> 0 | S80: =Таблица24[[#This Row],[доп.услуга1]]+Таблица24[[#This Row],[доп.услуга2]] -> 0
A81: =Таблица1[[#This Row],[№]] ->  | B81: =Таблица1[[#This Row],[Фамилия]] ->  | C81: =Таблица1[[#This Row],[Имя]] ->  | D81: =Таблица1[[#This Row],[Отчество]] ->  | E81: =Таблица1[[#This Row],[адрес]] ->  | F81: =Таблица1[[#This Row],[дата заказа]] ->  | G81: =Таблица1[[#This Row],[тип помещения]] ->  | Q81: =IF('dop_uslug (2)'!$K81="стирка",price_dop!$B$4,IF('dop_uslug (2)'!$K81="посуда",price_dop!$B$5,price_dop!$C$4)) -> 0 | R81: =IF('dop_uslug (2)'!$L81="стирка",price_dop!$B$4,IF('dop_uslug (2)'!$L81="посуда",price_dop!$B$5,price_dop!$C$4)) -> 0 | S81: =Таблица24[[#This Row],[доп.услуга1]]+Таблица24[[#This Row],[доп.услуга2]] -> 0
A82: =Таблица1[[#This Row],[№]] ->  | B82: =Таблица1[[#This Row],[Фамилия]] ->  | C82: =Таблица1[[#This Row],[Имя]] ->  | D82: =Таблица1[[#This Row],[Отчество]] ->  | E82: =Таблица1[[#This Row],[адрес]] ->  | F82: =Таблица1[[#This Row],[дата заказа]] ->  | G82: =Таблица1[[#This Row],[тип помещения]] ->  | Q82: =IF('dop_uslug (2)'!$K82="стирка",price_dop!$B$4,IF('dop_uslug (2)'!$K82="посуда",price_dop!$B$5,price_dop!$C$4)) -> 0 | R82: =IF('dop_uslug (2)'!$L82="стирка",price_dop!$B$4,IF('dop_uslug (2)'!$L82="посуда",price_dop!$B$5,price_dop!$C$4)) -> 0 | S82: =Таблица24[[#This Row],[доп.услуга1]]+Таблица24[[#This Row],[доп.услуга2]] -> 0
A83: =Таблица1[[#This Row],[№]] ->  | B83: =Таблица1[[#This Row],[Фамилия]] ->  | C83: =Таблица1[[#This Row],[Имя]] ->  | D83: =Таблица1[[#This Row],[Отчество]] ->  | E83: =Таблица1[[#This Row],[адрес]] ->  | F83: =Таблица1[[#This Row],[дата заказа]] ->  | G83: =Таблица1[[#This Row],[тип помещения]] ->  | Q83: =IF('dop_uslug (2)'!$K83="стирка",price_dop!$B$4,IF('dop_uslug (2)'!$K83="посуда",price_dop!$B$5,price_dop!$C$4)) -> 0 | R83: =IF('dop_uslug (2)'!$L83="стирка",price_dop!$B$4,IF('dop_uslug (2)'!$L83="посуда",price_dop!$B$5,price_dop!$C$4)) -> 0 | S83: =Таблица24[[#This Row],[доп.услуга1]]+Таблица24[[#This Row],[доп.услуга2]] -> 0
A84: =Таблица1[[#This Row],[№]] ->  | B84: =Таблица1[[#This Row],[Фамилия]] ->  | C84: =Таблица1[[#This Row],[Имя]] ->  | D84: =Таблица1[[#This Row],[Отчество]] ->  | E84: =Таблица1[[#This Row],[адрес]] ->  | F84: =Таблица1[[#This Row],[дата заказа]] ->  | G84: =Таблица1[[#This Row],[тип помещения]] ->  | Q84: =IF('dop_uslug (2)'!$K84="стирка",price_dop!$B$4,IF('dop_uslug (2)'!$K84="посуда",price_dop!$B$5,price_dop!$C$4)) -> 0 | R84: =IF('dop_uslug (2)'!$L84="стирка",price_dop!$B$4,IF('dop_uslug (2)'!$L84="посуда",price_dop!$B$5,price_dop!$C$4)) -> 0 | S84: =Таблица24[[#This Row],[доп.услуга1]]+Таблица24[[#This Row],[доп.услуга2]] -> 0
A85: =Таблица1[[#This Row],[№]] ->  | B85: =Таблица1[[#This Row],[Фамилия]] ->  | C85: =Таблица1[[#This Row],[Имя]] ->  | D85: =Таблица1[[#This Row],[Отчество]] ->  | E85: =Таблица1[[#This Row],[адрес]] ->  | F85: =Таблица1[[#This Row],[дата заказа]] ->  | G85: =Таблица1[[#This Row],[тип помещения]] ->  | Q85: =IF('dop_uslug (2)'!$K85="стирка",price_dop!$B$4,IF('dop_uslug (2)'!$K85="посуда",price_dop!$B$5,price_dop!$C$4)) -> 0 | R85: =IF('dop_uslug (2)'!$L85="стирка",price_dop!$B$4,IF('dop_uslug (2)'!$L85="посуда",price_dop!$B$5,price_dop!$C$4)) -> 0 | S85: =Таблица24[[#This Row],[доп.услуга1]]+Таблица24[[#This Row],[доп.услуга2]] -> 0
A86: =Таблица1[[#This Row],[№]] ->  | B86: =Таблица1[[#This Row],[Фамилия]] ->  | C86: =Таблица1[[#This Row],[Имя]] ->  | D86: =Таблица1[[#This Row],[Отчество]] ->  | E86: =Таблица1[[#This Row],[адрес]] ->  | F86: =Таблица1[[#This Row],[дата заказа]] ->  | G86: =Таблица1[[#This Row],[тип помещения]] ->  | Q86: =IF('dop_uslug (2)'!$K86="стирка",price_dop!$B$4,IF('dop_uslug (2)'!$K86="посуда",price_dop!$B$5,price_dop!$C$4)) -> 0 | R86: =IF('dop_uslug (2)'!$L86="стирка",price_dop!$B$4,IF('dop_uslug (2)'!$L86="посуда",price_dop!$B$5,price_dop!$C$4)) -> 0 | S86: =Таблица24[[#This Row],[доп.услуга1]]+Таблица24[[#This Row],[доп.услуга2]] -> 0
A87: =Таблица1[[#This Row],[№]] ->  | B87: =Таблица1[[#This Row],[Фамилия]] ->  | C87: =Таблица1[[#This Row],[Имя]] ->  | D87: =Таблица1[[#This Row],[Отчество]] ->  | E87: =Таблица1[[#This Row],[адрес]] ->  | F87: =Таблица1[[#This Row],[дата заказа]] ->  | G87: =Таблица1[[#This Row],[тип помещения]] ->  | Q87: =IF('dop_uslug (2)'!$K87="стирка",price_dop!$B$4,IF('dop_uslug (2)'!$K87="посуда",price_dop!$B$5,price_dop!$C$4)) -> 0 | R87: =IF('dop_uslug (2)'!$L87="стирка",price_dop!$B$4,IF('dop_uslug (2)'!$L87="посуда",price_dop!$B$5,price_dop!$C$4)) -> 0 | S87: =Таблица24[[#This Row],[доп.услуга1]]+Таблица24[[#This Row],[доп.услуга2]] -> 0
A88: =Таблица1[[#This Row],[№]] ->  | B88: =Таблица1[[#This Row],[Фамилия]] ->  | C88: =Таблица1[[#This Row],[Имя]] ->  | D88: =Таблица1[[#This Row],[Отчество]] ->  | E88: =Таблица1[[#This Row],[адрес]] ->  | F88: =Таблица1[[#This Row],[дата заказа]] ->  | G88: =Таблица1[[#This Row],[тип помещения]] ->  | Q88: =IF('dop_uslug (2)'!$K88="стирка",price_dop!$B$4,IF('dop_uslug (2)'!$K88="посуда",price_dop!$B$5,price_dop!$C$4)) -> 0 | R88: =IF('dop_uslug (2)'!$L88="стирка",price_dop!$B$4,IF('dop_uslug (2)'!$L88="посуда",price_dop!$B$5,price_dop!$C$4)) -> 0 | S88: =Таблица24[[#This Row],[доп.услуга1]]+Таблица24[[#This Row],[доп.услуга2]] -> 0
A89: =Таблица1[[#This Row],[№]] ->  | B89: =Таблица1[[#This Row],[Фамилия]] ->  | C89: =Таблица1[[#This Row],[Имя]] ->  | D89: =Таблица1[[#This Row],[Отчество]] ->  | E89: =Таблица1[[#This Row],[адрес]] ->  | F89: =Таблица1[[#This Row],[дата заказа]] ->  | G89: =Таблица1[[#This Row],[тип помещения]] ->  | Q89: =IF('dop_uslug (2)'!$K89="стирка",price_dop!$B$4,IF('dop_uslug (2)'!$K89="посуда",price_dop!$B$5,price_dop!$C$4)) -> 0 | R89: =IF('dop_uslug (2)'!$L89="стирка",price_dop!$B$4,IF('dop_uslug (2)'!$L89="посуда",price_dop!$B$5,price_dop!$C$4)) -> 0 | S89: =Таблица24[[#This Row],[доп.услуга1]]+Таблица24[[#This Row],[доп.услуга2]] -> 0
A90: =Таблица1[[#This Row],[№]] ->  | B90: =Таблица1[[#This Row],[Фамилия]] ->  | C90: =Таблица1[[#This Row],[Имя]] ->  | D90: =Таблица1[[#This Row],[Отчество]] ->  | E90: =Таблица1[[#This Row],[адрес]] ->  | F90: =Таблица1[[#This Row],[дата заказа]] ->  | G90: =Таблица1[[#This Row],[тип помещения]] ->  | Q90: =IF('dop_uslug (2)'!$K90="стирка",price_dop!$B$4,IF('dop_uslug (2)'!$K90="посуда",price_dop!$B$5,price_dop!$C$4)) -> 0 | R90: =IF('dop_uslug (2)'!$L90="стирка",price_dop!$B$4,IF('dop_uslug (2)'!$L90="посуда",price_dop!$B$5,price_dop!$C$4)) -> 0 | S90: =Таблица24[[#This Row],[доп.услуга1]]+Таблица24[[#This Row],[доп.услуга2]] -> 0
A91: =Таблица1[[#This Row],[№]] ->  | B91: =Таблица1[[#This Row],[Фамилия]] ->  | C91: =Таблица1[[#This Row],[Имя]] ->  | D91: =Таблица1[[#This Row],[Отчество]] ->  | E91: =Таблица1[[#This Row],[адрес]] ->  | F91: =Таблица1[[#This Row],[дата заказа]] ->  | G91: =Таблица1[[#This Row],[тип помещения]] ->  | Q91: =IF('dop_uslug (2)'!$K91="стирка",price_dop!$B$4,IF('dop_uslug (2)'!$K91="посуда",price_dop!$B$5,price_dop!$C$4)) -> 0 | R91: =IF('dop_uslug (2)'!$L91="стирка",price_dop!$B$4,IF('dop_uslug (2)'!$L91="посуда",price_dop!$B$5,price_dop!$C$4)) -> 0 | S91: =Таблица24[[#This Row],[доп.услуга1]]+Таблица24[[#This Row],[доп.услуга2]] -> 0
A92: =Таблица1[[#This Row],[№]] ->  | B92: =Таблица1[[#This Row],[Фамилия]] ->  | C92: =Таблица1[[#This Row],[Имя]] ->  | D92: =Таблица1[[#This Row],[Отчество]] ->  | E92: =Таблица1[[#This Row],[адрес]] ->  | F92: =Таблица1[[#This Row],[дата заказа]] ->  | G92: =Таблица1[[#This Row],[тип помещения]] ->  | Q92: =IF('dop_uslug (2)'!$K92="стирка",price_dop!$B$4,IF('dop_uslug (2)'!$K92="посуда",price_dop!$B$5,price_dop!$C$4)) -> 0 | R92: =IF('dop_uslug (2)'!$L92="стирка",price_dop!$B$4,IF('dop_uslug (2)'!$L92="посуда",price_dop!$B$5,price_dop!$C$4)) -> 0 | S92: =Таблица24[[#This Row],[доп.услуга1]]+Таблица24[[#This Row],[доп.услуга2]] -> 0
A93: =Таблица1[[#This Row],[№]] ->  | B93: =Таблица1[[#This Row],[Фамилия]] ->  | C93: =Таблица1[[#This Row],[Имя]] ->  | D93: =Таблица1[[#This Row],[Отчество]] ->  | E93: =Таблица1[[#This Row],[адрес]] ->  | F93: =Таблица1[[#This Row],[дата заказа]] ->  | G93: =Таблица1[[#This Row],[тип помещения]] ->  | Q93: =IF('dop_uslug (2)'!$K93="стирка",price_dop!$B$4,IF('dop_uslug (2)'!$K93="посуда",price_dop!$B$5,price_dop!$C$4)) -> 0 | R93: =IF('dop_uslug (2)'!$L93="стирка",price_dop!$B$4,IF('dop_uslug (2)'!$L93="посуда",price_dop!$B$5,price_dop!$C$4)) -> 0 | S93: =Таблица24[[#This Row],[доп.услуга1]]+Таблица24[[#This Row],[доп.услуга2]] -> 0
A94: =Таблица1[[#This Row],[№]] ->  | B94: =Таблица1[[#This Row],[Фамилия]] ->  | C94: =Таблица1[[#This Row],[Имя]] ->  | D94: =Таблица1[[#This Row],[Отчество]] ->  | E94: =Таблица1[[#This Row],[адрес]] ->  | F94: =Таблица1[[#This Row],[дата заказа]] ->  | G94: =Таблица1[[#This Row],[тип помещения]] ->  | Q94: =IF('dop_uslug (2)'!$K94="стирка",price_dop!$B$4,IF('dop_uslug (2)'!$K94="посуда",price_dop!$B$5,price_dop!$C$4)) -> 0 | R94: =IF('dop_uslug (2)'!$L94="стирка",price_dop!$B$4,IF('dop_uslug (2)'!$L94="посуда",price_dop!$B$5,price_dop!$C$4)) -> 0 | S94: =Таблица24[[#This Row],[доп.услуга1]]+Таблица24[[#This Row],[доп.услуга2]] -> 0
A95: =Таблица1[[#This Row],[№]] ->  | B95: =Таблица1[[#This Row],[Фамилия]] ->  | C95: =Таблица1[[#This Row],[Имя]] ->  | D95: =Таблица1[[#This Row],[Отчество]] ->  | E95: =Таблица1[[#This Row],[адрес]] ->  | F95: =Таблица1[[#This Row],[дата заказа]] ->  | G95: =Таблица1[[#This Row],[тип помещения]] ->  | Q95: =IF('dop_uslug (2)'!$K95="стирка",price_dop!$B$4,IF('dop_uslug (2)'!$K95="посуда",price_dop!$B$5,price_dop!$C$4)) -> 0 | R95: =IF('dop_uslug (2)'!$L95="стирка",price_dop!$B$4,IF('dop_uslug (2)'!$L95="посуда",price_dop!$B$5,price_dop!$C$4)) -> 0 | S95: =Таблица24[[#This Row],[доп.услуга1]]+Таблица24[[#This Row],[доп.услуга2]] -> 0
A96: =Таблица1[[#This Row],[№]] ->  | B96: =Таблица1[[#This Row],[Фамилия]] ->  | C96: =Таблица1[[#This Row],[Имя]] ->  | D96: =Таблица1[[#This Row],[Отчество]] ->  | E96: =Таблица1[[#This Row],[адрес]] ->  | F96: =Таблица1[[#This Row],[дата заказа]] ->  | G96: =Таблица1[[#This Row],[тип помещения]] ->  | Q96: =IF('dop_uslug (2)'!$K96="стирка",price_dop!$B$4,IF('dop_uslug (2)'!$K96="посуда",price_dop!$B$5,price_dop!$C$4)) -> 0 | R96: =IF('dop_uslug (2)'!$L96="стирка",price_dop!$B$4,IF('dop_uslug (2)'!$L96="посуда",price_dop!$B$5,price_dop!$C$4)) -> 0 | S96: =Таблица24[[#This Row],[доп.услуга1]]+Таблица24[[#This Row],[доп.услуга2]] -> 0
A97: =Таблица1[[#This Row],[№]] ->  | B97: =Таблица1[[#This Row],[Фамилия]] ->  | C97: =Таблица1[[#This Row],[Имя]] ->  | D97: =Таблица1[[#This Row],[Отчество]] ->  | E97: =Таблица1[[#This Row],[адрес]] ->  | F97: =Таблица1[[#This Row],[дата заказа]] ->  | G97: =Таблица1[[#This Row],[тип помещения]] ->  | Q97: =IF('dop_uslug (2)'!$K97="стирка",price_dop!$B$4,IF('dop_uslug (2)'!$K97="посуда",price_dop!$B$5,price_dop!$C$4)) -> 0 | R97: =IF('dop_uslug (2)'!$L97="стирка",price_dop!$B$4,IF('dop_uslug (2)'!$L97="посуда",price_dop!$B$5,price_dop!$C$4)) -> 0 | S97: =Таблица24[[#This Row],[доп.услуга1]]+Таблица24[[#This Row],[доп.услуга2]] -> 0
A98: =Таблица1[[#This Row],[№]] ->  | B98: =Таблица1[[#This Row],[Фамилия]] ->  | C98: =Таблица1[[#This Row],[Имя]] ->  | D98: =Таблица1[[#This Row],[Отчество]] ->  | E98: =Таблица1[[#This Row],[адрес]] ->  | F98: =Таблица1[[#This Row],[дата заказа]] ->  | G98: =Таблица1[[#This Row],[тип помещения]] ->  | Q98: =IF('dop_uslug (2)'!$K98="стирка",price_dop!$B$4,IF('dop_uslug (2)'!$K98="посуда",price_dop!$B$5,price_dop!$C$4)) -> 0 | R98: =IF('dop_uslug (2)'!$L98="стирка",price_dop!$B$4,IF('dop_uslug (2)'!$L98="посуда",price_dop!$B$5,price_dop!$C$4)) -> 0 | S98: =Таблица24[[#This Row],[доп.услуга1]]+Таблица24[[#This Row],[доп.услуга2]] -> 0
A99: =Таблица1[[#This Row],[№]] ->  | B99: =Таблица1[[#This Row],[Фамилия]] ->  | C99: =Таблица1[[#This Row],[Имя]] ->  | D99: =Таблица1[[#This Row],[Отчество]] ->  | E99: =Таблица1[[#This Row],[адрес]] ->  | F99: =Таблица1[[#This Row],[дата заказа]] ->  | G99: =Таблица1[[#This Row],[тип помещения]] ->  | Q99: =IF('dop_uslug (2)'!$K99="стирка",price_dop!$B$4,IF('dop_uslug (2)'!$K99="посуда",price_dop!$B$5,price_dop!$C$4)) -> 0 | R99: =IF('dop_uslug (2)'!$L99="стирка",price_dop!$B$4,IF('dop_uslug (2)'!$L99="посуда",price_dop!$B$5,price_dop!$C$4)) -> 0 | S99: =Таблица24[[#This Row],[доп.услуга1]]+Таблица24[[#This Row],[доп.услуга2]] -> 0
A100: =Таблица1[[#This Row],[№]] ->  | B100: =Таблица1[[#This Row],[Фамилия]] ->  | C100: =Таблица1[[#This Row],[Имя]] ->  | D100: =Таблица1[[#This Row],[Отчество]] ->  | E100: =Таблица1[[#This Row],[адрес]] ->  | F100: =Таблица1[[#This Row],[дата заказа]] ->  | G100: =Таблица1[[#This Row],[тип помещения]] ->  | Q100: =IF('dop_uslug (2)'!$K100="стирка",price_dop!$B$4,IF('dop_uslug (2)'!$K100="посуда",price_dop!$B$5,price_dop!$C$4)) -> 0 | R100: =IF('dop_uslug (2)'!$L100="стирка",price_dop!$B$4,IF('dop_uslug (2)'!$L100="посуда",price_dop!$B$5,price_dop!$C$4)) -> 0 | S100: =Таблица24[[#This Row],[доп.услуга1]]+Таблица24[[#This Row],[доп.услуга2]] -> 0
A101: =Таблица1[[#This Row],[№]] ->  | B101: =Таблица1[[#This Row],[Фамилия]] ->  | C101: =Таблица1[[#This Row],[Имя]] ->  | D101: =Таблица1[[#This Row],[Отчество]] ->  | E101: =Таблица1[[#This Row],[адрес]] ->  | F101: =Таблица1[[#This Row],[дата заказа]] ->  | G101: =Таблица1[[#This Row],[тип помещения]] ->  | Q101: =IF('dop_uslug (2)'!$K101="стирка",price_dop!$B$4,IF('dop_uslug (2)'!$K101="посуда",price_dop!$B$5,price_dop!$C$4)) -> 0 | R101: =IF('dop_uslug (2)'!$L101="стирка",price_dop!$B$4,IF('dop_uslug (2)'!$L101="посуда",price_dop!$B$5,price_dop!$C$4)) -> 0 | S101: =Таблица24[[#This Row],[доп.услуга1]]+Таблица24[[#This Row],[доп.услуга2]] -> 0
A102: =Таблица1[[#This Row],[№]] ->  | B102: =Таблица1[[#This Row],[Фамилия]] ->  | C102: =Таблица1[[#This Row],[Имя]] ->  | D102: =Таблица1[[#This Row],[Отчество]] ->  | E102: =Таблица1[[#This Row],[адрес]] ->  | F102: =Таблица1[[#This Row],[дата заказа]] ->  | G102: =Таблица1[[#This Row],[тип помещения]] ->  | Q102: =IF('dop_uslug (2)'!$K102="стирка",price_dop!$B$4,IF('dop_uslug (2)'!$K102="посуда",price_dop!$B$5,price_dop!$C$4)) -> 0 | R102: =IF('dop_uslug (2)'!$L102="стирка",price_dop!$B$4,IF('dop_uslug (2)'!$L102="посуда",price_dop!$B$5,price_dop!$C$4)) -> 0 | S102: =Таблица24[[#This Row],[доп.услуга1]]+Таблица24[[#This Row],[доп.услуга2]] -> 0
A103: =Таблица1[[#This Row],[№]] ->  | B103: =Таблица1[[#This Row],[Фамилия]] ->  | C103: =Таблица1[[#This Row],[Имя]] ->  | D103: =Таблица1[[#This Row],[Отчество]] ->  | E103: =Таблица1[[#This Row],[адрес]] ->  | F103: =Таблица1[[#This Row],[дата заказа]] ->  | G103: =Таблица1[[#This Row],[тип помещения]] ->  | Q103: =IF('dop_uslug (2)'!$K103="стирка",price_dop!$B$4,IF('dop_uslug (2)'!$K103="посуда",price_dop!$B$5,price_dop!$C$4)) -> 0 | R103: =IF('dop_uslug (2)'!$L103="стирка",price_dop!$B$4,IF('dop_uslug (2)'!$L103="посуда",price_dop!$B$5,price_dop!$C$4)) -> 0 | S103: =Таблица24[[#This Row],[доп.услуга1]]+Таблица24[[#This Row],[доп.услуга2]] -> 0
A104: =Таблица1[[#This Row],[№]] ->  | B104: =Таблица1[[#This Row],[Фамилия]] ->  | C104: =Таблица1[[#This Row],[Имя]] ->  | D104: =Таблица1[[#This Row],[Отчество]] ->  | E104: =Таблица1[[#This Row],[адрес]] ->  | F104: =Таблица1[[#This Row],[дата заказа]] ->  | G104: =Таблица1[[#This Row],[тип помещения]] ->  | Q104: =IF('dop_uslug (2)'!$K104="стирка",price_dop!$B$4,IF('dop_uslug (2)'!$K104="посуда",price_dop!$B$5,price_dop!$C$4)) -> 0 | R104: =IF('dop_uslug (2)'!$L104="стирка",price_dop!$B$4,IF('dop_uslug (2)'!$L104="посуда",price_dop!$B$5,price_dop!$C$4)) -> 0 | S104: =Таблица24[[#This Row],[доп.услуга1]]+Таблица24[[#This Row],[доп.услуга2]] -> 0
A105: =Таблица1[[#This Row],[№]] ->  | B105: =Таблица1[[#This Row],[Фамилия]] ->  | C105: =Таблица1[[#This Row],[Имя]] ->  | D105: =Таблица1[[#This Row],[Отчество]] ->  | E105: =Таблица1[[#This Row],[адрес]] ->  | F105: =Таблица1[[#This Row],[дата заказа]] ->  | G105: =Таблица1[[#This Row],[тип помещения]] ->  | Q105: =IF('dop_uslug (2)'!$K105="стирка",price_dop!$B$4,IF('dop_uslug (2)'!$K105="посуда",price_dop!$B$5,price_dop!$C$4)) -> 0 | R105: =IF('dop_uslug (2)'!$L105="стирка",price_dop!$B$4,IF('dop_uslug (2)'!$L105="посуда",price_dop!$B$5,price_dop!$C$4)) -> 0 | S105: =Таблица24[[#This Row],[доп.услуга1]]+Таблица24[[#This Row],[доп.услуга2]] -> 0
A106: =Таблица1[[#This Row],[№]] ->  | B106: =Таблица1[[#This Row],[Фамилия]] ->  | C106: =Таблица1[[#This Row],[Имя]] ->  | D106: =Таблица1[[#This Row],[Отчество]] ->  | E106: =Таблица1[[#This Row],[адрес]] ->  | F106: =Таблица1[[#This Row],[дата заказа]] ->  | G106: =Таблица1[[#This Row],[тип помещения]] ->  | Q106: =IF('dop_uslug (2)'!$K106="стирка",price_dop!$B$4,IF('dop_uslug (2)'!$K106="посуда",price_dop!$B$5,price_dop!$C$4)) -> 0 | R106: =IF('dop_uslug (2)'!$L106="стирка",price_dop!$B$4,IF('dop_uslug (2)'!$L106="посуда",price_dop!$B$5,price_dop!$C$4)) -> 0 | S106: =Таблица24[[#This Row],[доп.услуга1]]+Таблица24[[#This Row],[доп.услуга2]] -> 0
A107: =Таблица1[[#This Row],[№]] ->  | B107: =Таблица1[[#This Row],[Фамилия]] ->  | C107: =Таблица1[[#This Row],[Имя]] ->  | D107: =Таблица1[[#This Row],[Отчество]] ->  | E107: =Таблица1[[#This Row],[адрес]] ->  | F107: =Таблица1[[#This Row],[дата заказа]] ->  | G107: =Таблица1[[#This Row],[тип помещения]] ->  | Q107: =IF('dop_uslug (2)'!$K107="стирка",price_dop!$B$4,IF('dop_uslug (2)'!$K107="посуда",price_dop!$B$5,price_dop!$C$4)) -> 0 | R107: =IF('dop_uslug (2)'!$L107="стирка",price_dop!$B$4,IF('dop_uslug (2)'!$L107="посуда",price_dop!$B$5,price_dop!$C$4)) -> 0 | S107: =Таблица24[[#This Row],[доп.услуга1]]+Таблица24[[#This Row],[доп.услуга2]] -> 0
A108: =Таблица1[[#This Row],[№]] ->  | B108: =Таблица1[[#This Row],[Фамилия]] ->  | C108: =Таблица1[[#This Row],[Имя]] ->  | D108: =Таблица1[[#This Row],[Отчество]] ->  | E108: =Таблица1[[#This Row],[адрес]] ->  | F108: =Таблица1[[#This Row],[дата заказа]] ->  | G108: =Таблица1[[#This Row],[тип помещения]] ->  | Q108: =IF('dop_uslug (2)'!$K108="стирка",price_dop!$B$4,IF('dop_uslug (2)'!$K108="посуда",price_dop!$B$5,price_dop!$C$4)) -> 0 | R108: =IF('dop_uslug (2)'!$L108="стирка",price_dop!$B$4,IF('dop_uslug (2)'!$L108="посуда",price_dop!$B$5,price_dop!$C$4)) -> 0 | S108: =Таблица24[[#This Row],[доп.услуга1]]+Таблица24[[#This Row],[доп.услуга2]] -> 0
A109: =Таблица1[[#This Row],[№]] ->  | B109: =Таблица1[[#This Row],[Фамилия]] ->  | C109: =Таблица1[[#This Row],[Имя]] ->  | D109: =Таблица1[[#This Row],[Отчество]] ->  | E109: =Таблица1[[#This Row],[адрес]] ->  | F109: =Таблица1[[#This Row],[дата заказа]] ->  | G109: =Таблица1[[#This Row],[тип помещения]] ->  | Q109: =IF('dop_uslug (2)'!$K109="стирка",price_dop!$B$4,IF('dop_uslug (2)'!$K109="посуда",price_dop!$B$5,price_dop!$C$4)) -> 0 | R109: =IF('dop_uslug (2)'!$L109="стирка",price_dop!$B$4,IF('dop_uslug (2)'!$L109="посуда",price_dop!$B$5,price_dop!$C$4)) -> 0 | S109: =Таблица24[[#This Row],[доп.услуга1]]+Таблица24[[#This Row],[доп.услуга2]] -> 0
A110: =Таблица1[[#This Row],[№]] ->  | B110: =Таблица1[[#This Row],[Фамилия]] ->  | C110: =Таблица1[[#This Row],[Имя]] ->  | D110: =Таблица1[[#This Row],[Отчество]] ->  | E110: =Таблица1[[#This Row],[адрес]] ->  | F110: =Таблица1[[#This Row],[дата заказа]] ->  | G110: =Таблица1[[#This Row],[тип помещения]] ->  | Q110: =IF('dop_uslug (2)'!$K110="стирка",price_dop!$B$4,IF('dop_uslug (2)'!$K110="посуда",price_dop!$B$5,price_dop!$C$4)) -> 0 | R110: =IF('dop_uslug (2)'!$L110="стирка",price_dop!$B$4,IF('dop_uslug (2)'!$L110="посуда",price_dop!$B$5,price_dop!$C$4)) -> 0 | S110: =Таблица24[[#This Row],[доп.услуга1]]+Таблица24[[#This Row],[доп.услуга2]] -> 0
